﻿Department family,Entity,Date,Expense type,Expense area,Supplier,Transaction number,Amount,Description,Supplier Postcode
CHS Estates,L2 Estates,03/03/2023,Other Clinical Costs,Management Estates,Agfa Finance,DEIN/23020003,"144,073.80 ",Year 4 of 10 (28 April 2022 - 27 April 2023) PACS system. Managed Service Contract. Yorkshire Imaging Collaborative.  Payment terms: quatery in advnace.,TW8 9TH
Balance Sheet,Fixed Assets,24/03/2023,Additions - Assets Under Construction,Capital (His),Agfa HealthCare IT UK Ltd,9820000046,"41,616.90",AGFA Healthcare: Main offer standard echo package,UB11 1FW
Balance Sheet,Fixed Assets,24/03/2023,Additions - Assets Under Construction,Capital (His),Agfa HealthCare IT UK Ltd,9820000046,"42,821.00",AGFA Healthcare: Data Migration from Xcelera + storage HW,UB11 1FW
Balance Sheet,Fixed Assets,24/03/2023,Additions - Assets Under Construction,Capital (His),Agfa HealthCare IT UK Ltd,9820000046,"17,040.00",AGFA Healthcare: Optional Cardiovascular Modules package (price for 2 cath labs),UB11 1FW
Balance Sheet,L2 Current Assets,01/03/2023,Finished Processed Goods,Stock & Work In Progress,Alliance Healthcare Distribution Ltd,F31V51306,"40,991.47 ",Pharmaceutical purchase,KT9 1SN
Balance Sheet,L2 Current Assets,08/03/2023,Finished Processed Goods,Stock & Work In Progress,Alliance Healthcare Distribution Ltd,F32651245,"40,478.40 ",Pharmaceutical purchase,KT9 1SN
Balance Sheet,L2 Current Assets,10/03/2023,Finished Processed Goods,Stock & Work In Progress,Alliance Healthcare Distribution Ltd,F32951810,"40,977.77 ",Pharmaceutical purchase,KT9 1SN
Balance Sheet,L2 Current Assets,17/03/2023,Finished Processed Goods,Stock & Work In Progress,Alliance Healthcare Distribution Ltd,F32G51201,"40,475.88 ",Pharmaceutical purchase,KT9 1SN
Balance Sheet,L2 Current Assets,22/03/2023,Finished Processed Goods,Stock & Work In Progress,Alliance Healthcare Distribution Ltd,F32L54967,"40,475.88 ",Pharmaceutical purchase,KT9 1SN
Balance Sheet,L2 Current Assets,31/03/2023,Finished Processed Goods,Stock & Work In Progress,Alliance Healthcare Distribution Ltd,F33151116,"40,475.88 ",Pharmaceutical purchase,KT9 1SN
Balance Sheet,L2 Current Assets,06/04/2023,Finished Processed Goods,Stock & Work In Progress,Alliance Healthcare Distribution Ltd,F33954746,"40,878.29 ",Pharmaceutical purchase,KT9 1SN
Balance Sheet,L2 Current Assets,03/03/2023,Finished Processed Goods,Stock & Work In Progress,Alloga Uk Ltd,SIN103701349,"31,845.60 ",Pharmaceutical purchase,DE55 2FH
Balance Sheet,L2 Current Assets,08/03/2023,Finished Processed Goods,Stock & Work In Progress,Alloga Uk Ltd,SIN103702601,"36,000.00 ",Pharmaceutical purchase,DE55 2FH
Balance Sheet,L2 Current Assets,08/03/2023,Finished Processed Goods,Stock & Work In Progress,Alloga Uk Ltd,SIN103702612,"29,901.52 ",Pharmaceutical purchase,DE55 2FH
Balance Sheet,L2 Current Assets,22/03/2023,Finished Processed Goods,Stock & Work In Progress,Alloga Uk Ltd,SIN103716302,"28,498.40 ",Pharmaceutical purchase,DE55 2FH
Balance Sheet,L2 Current Assets,31/03/2023,Finished Processed Goods,Stock & Work In Progress,Alloga Uk Ltd,SIN103724214,"27,000.00 ",Pharmaceutical purchase,DE55 2FH
Balance Sheet,L2 Current Assets,31/03/2023,Finished Processed Goods,Stock & Work In Progress,Alloga Uk Ltd,SIN103727364,"29,296.80 ",Pharmaceutical purchase,DE55 2FH
Balance Sheet,L2 Current Assets,06/04/2023,Finished Processed Goods,Stock & Work In Progress,Alloga Uk Ltd,SIN103732177,"25,702.13 ",Pharmaceutical purchase,DE55 2FH
Corporate Services,Service Performance,24/03/2023,Contract : Other External,Properties,Amas Ltd,00310-202300011,"3,270.00",Service Charge on Account 25/03/2023- 23/06/2023,E14 5WQ
Balance Sheet,L2 Long Term Creditors,24/03/2023,Lease Liabilities under IFRS 16 > 1 year,Finance Leases,Amas Ltd,00310-202300011,"67,875.00",Rental Income 25/03/2023-23/06/2023,E14 5WQ
Balance Sheet,L2 Long Term Creditors,24/03/2023,Lease Liabilities under IFRS 16 > 1 year,Finance Leases,Assura Medical Centres Ltd,LINV53236,"29,100.00 ",Todmorden 25/03/2023 23/06/2023,WA4 6HL
Balance Sheet,Fixed Assets,10/03/2023,Additions - Assets Under Construction,Capital (Medicine & Elderly),Athrodax Healthcare International Ltd,00218405,"54,852.00 ",PUVA Machine. Hand & Foot PUVA Machine 4 panel. Installation,GL17 9HP
CHS Estates,L2 Estates,17/03/2023,Contract : Other External,Medical Physics,B Braun Sterilog (Yorkshire) Ltd,328746925,"178,667.24 ",Decontamination Services for Surgical & Podiatry.,S35 2PW
Balance Sheet,L2 Current Assets,01/03/2023,Finished Processed Goods,Stock & Work In Progress,Bayer Plc,824C471210,"27,373.68 ",Pharmaceutical purchase,RG2 6AD
Balance Sheet,L2 Current Assets,03/03/2023,Finished Processed Goods,Stock & Work In Progress,Bayer Plc,824C471403,"114,057.00 ",Pharmaceutical purchase,RG2 6AD
Balance Sheet,L2 Current Assets,10/03/2023,Finished Processed Goods,Stock & Work In Progress,Bayer Plc,824C472614,"27,373.68 ",Pharmaceutical purchase,RG2 6AD
Balance Sheet,L2 Current Assets,22/03/2023,Finished Processed Goods,Stock & Work In Progress,Bayer Plc,824C475707,"27,373.68 ",Pharmaceutical purchase,RG2 6AD
Balance Sheet,L2 Current Assets,24/03/2023,Finished Processed Goods,Stock & Work In Progress,Bayer Plc,824C476445,"114,057.00 ",Pharmaceutical purchase,RG2 6AD
Balance Sheet,L2 Current Assets,31/03/2023,Finished Processed Goods,Stock & Work In Progress,Bayer Plc,824C477169,"27,373.68 ",Pharmaceutical purchase,RG2 6AD
Balance Sheet,L2 Current Assets,12/04/2023,Finished Processed Goods,Stock & Work In Progress,Bayer Plc,824C479017,"27,373.68 ",Pharmaceutical purchase,RG2 6AD
Surgery & Anaesthetics,Surgical Divisional Support,17/03/2023,Contractual Clinical Services,Independent Sector,Bmi Healthcare Ltd,S5712DEC22,"80,150.07 ",Provision of Elective Activity,SK3 0XN
Recharges,Recharges,06/04/2023,Healthcare From Foundation Trusts,Recharges,Bradford Teaching Hospitals NHS Foundation Trust,323335,"118,442.59 ",Various services provided by agreement as per West Yorkshire Association of Acute Trusts agreed methodology,WF3 1WE
Balance Sheet,L2 Current Assets,24/03/2023,Finished Processed Goods,Stock & Work In Progress,Bristol Myers Squibb Pharmaceuticals Ltd,100708339,"34,388.69 ",Pharmaceutical purchase,CH4 9QW
Balance Sheet,L2 Current Assets,24/03/2023,Finished Processed Goods,Stock & Work In Progress,Bristol Myers Squibb Pharmaceuticals Ltd,100708482,"27,531.00 ",Pharmaceutical purchase,CH4 9QW
Surgery & Anaesthetics,Surgical Divisional Support,15/03/2023,Healthcare From Independent Sector,Elective Recovery,Calderdale And Huddersfield Orthopaedic Partnership Llp,CN-0070,"-75,000.00 ",Provision of Orthopaedic and/or Specialty Healthcare Services,LS8 2JH
Surgery & Anaesthetics,Surgical Divisional Support,15/03/2023,Healthcare From Commercial Sector,Elective Recovery,Calderdale And Huddersfield Orthopaedic Partnership Llp,INV-0058,"68,153.43 ",Provision of Orthopaedic and/or Specialty Healthcare Services,LS8 2JH
Surgery & Anaesthetics,Surgical Divisional Support,15/03/2023,Healthcare From Independent Sector,Elective Recovery,Calderdale And Huddersfield Orthopaedic Partnership Llp,INV-0060,"172,904.95 ",Provision of Orthopaedic and/or Specialty Healthcare Services,LS8 2JH
Surgery & Anaesthetics,Surgical Divisional Support,15/03/2023,Healthcare From Independent Sector,Elective Recovery,Calderdale And Huddersfield Orthopaedic Partnership Llp,INV-0062,"43,144.85 ",Provision of Orthopaedic and/or Specialty Healthcare Services,LS8 2JH
Surgery & Anaesthetics,Surgical Divisional Support,15/03/2023,Healthcare From Independent Sector,Elective Recovery,Calderdale And Huddersfield Orthopaedic Partnership Llp,INV-0064,"38,051.57 ",Provision of Orthopaedic and/or Specialty Healthcare Services,LS8 2JH
Surgery & Anaesthetics,Surgical Divisional Support,24/03/2023,Healthcare From Commercial Sector,Elective Recovery,Calderdale And Huddersfield Orthopaedic Partnership Llp,INV-0073,"86,909.66 ",Provision of Orthopaedic and/or Specialty Healthcare Services,LS8 2JH
Surgery & Anaesthetics,Surgical Divisional Support,29/03/2023,Healthcare From Commercial Sector,Elective Recovery,Calderdale And Huddersfield Orthopaedic Partnership Llp,INV-0079,"75,000.00 ",Provision of Orthopaedic and/or Specialty Healthcare Services,LS8 2JH
Surgery & Anaesthetics,Surgical Divisional Support,29/03/2023,Healthcare From Commercial Sector,Elective Recovery,Calderdale And Huddersfield Orthopaedic Partnership Llp,INV-0080,"122,555.14 ",Provision of Orthopaedic and/or Specialty Healthcare Services,LS8 2JH
Corporate Services,Service Performance,01/03/2023,Minor Works,Pfi,Calderdale Hospital Spc Ltd,CASI46,"130,528.87 ",New Works Instructions,M20 2YY
Corporate Services,Service Performance,08/03/2023,Minor Works,Pfi,Calderdale Hospital Spc Ltd,CASI47,"98,020.15 ",Calderdale LED Project,M20 2YY
Corporate Services,Service Performance,17/03/2023,Contract : Other External,Pfi,Calderdale Hospital Spc Ltd,CASI50,"3,048,766.66 ",PFI contract monthly payment,M20 2YY
Corporate Services,Service Performance,15/03/2023,External Contracts : Catering,Pfi,Calderdale Hospital Spc Ltd,CASI51,"48,642.78 ",Additional variations,M20 2YY
Corporate Services,Service Performance,17/03/2023,Minor Works,Pfi,Calderdale Hospital Spc Ltd,CASI56,"89,966.34 ",New Works Instructions,M20 2YY
Corporate Services,Service Performance,31/03/2023,Minor Works,Pfi,Calderdale Hospital Spc Ltd,CASI60,"104,242.66 ",Calderdale LED Project,M20 2YY
Corporate Services,Service Performance,12/04/2023,External Contracts : Catering,Pfi,Calderdale Hospital Spc Ltd,CASI62,"53,491.86 ",Additional variations,M20 2YY
Corporate Services,Service Performance,01/03/2023,Rates,Properties,Calderdale Metropolitan Borough Council,25202291017616,"73,387.00 ",Business rates for Calderdale Royal Hospital,HX1 1TP
Central & Technical,Tech Accounting,06/04/2023,CCG Income,Tech Accounting,Calderdale Metropolitan Borough Council,IN22186299,"26,000.00 ",CAPACITY FUND - CALDERDALE COUNCIL OVERTIME OF SOCIAL WORKERS TO ENABLE 7 DAY COVER,HX1 1TP
Central & Technical,Tech Accounting,06/04/2023,CCG Income,Tech Accounting,Calderdale Metropolitan Borough Council,IN22186301,"66,500.00 ",CAPACITY FUND - CALDERDALE COUNCIL ADDITIONAL OT STAFF,HX1 1TP
Central & Technical,Tech Accounting,06/04/2023,CCG Income,Tech Accounting,Calderdale Metropolitan Borough Council,IN2218631X,"25,000.00 ",UECB WINTER MONIES ALLOCATION - CALDERDALE COUNCIL - ENABLE OT POST TO ACCESS DIGITAL AND ASSISTIVE TECHNOLOGY TO PREVENT ADMISSIONS,HX1 1TP
Balance Sheet,Fixed Assets,01/03/2023,Additions - Assets Under Construction,Capital (His),Ccs Media Ltd,4741726,"27,180.00","56 x Benq SL4302k 43"" Smart Signage display pantone @ £755 each  ",S40 2EX
Balance Sheet,Fixed Assets,01/03/2023,Additions - Assets Under Construction,Capital (His),Ccs Media Ltd,4741726,"1,680.00",56 x TDY31 Wireless USB Adaptor @ £30 each,S40 2EX
Balance Sheet,Fixed Assets,01/03/2023,Additions - Assets Under Construction,Capital (His),Ccs Media Ltd,4741726,"4,125.00","56 x Paramount Universal Tilt Wall Mount for 39"" to 75"" Display @ £75 each ",S40 2EX
Health Informatics,Service Delivery,29/03/2023,Computer Hardware Purchases,Service Delivery,Ccs Media Ltd,4793810,"26,038.80",Printers & Scanners as att. quote. 0116342 dated 9 Feb 23.Brother- Brother HL-L5100DNT A4 Mono Laser Printer + Lower Tray  A4 Mono Laser Printer 40ppm Mono 1200 x 1200 dpi Print 1 Year RTB Warranty\sw/ Lwr Tray,S40 2EX
Health Informatics,Service Delivery,29/03/2023,Office Equipment And Materials : Purchase,Service Delivery,Ccs Media Ltd,4793810,"8,866.05",Fujitsu- Fujitsu fi-8170 ADF + Manual feed scanner 600 x 600 DPI A4 Black  GreyFujitsu fi Series fi-8170 70ppm/140ipm A4 Duplex ADF USB3.2 LED Wrkgroup Scanner,S40 2EX
Health Informatics,Modernisation Programme,03/03/2023,Computer Software / License  Fees,Modernisation Programme,Cerner Ltd,102189140,"63,112.80 ",Cerner Table 12: RHO Recurring Charges. Monthly  commencing from the Effective Date and continuing until the end of the Term £52 594 monthly for 2023.,W2 1AF
Health Informatics,Modernisation Programme,03/03/2023,Computer Software / License  Fees,Modernisation Programme,Cerner Ltd,102189219,"38,400.00 ",Cerner CCN053 Nuance Drage medical one speech recognition  shared computing services monthly recuring charge £32 000 for 2023.,W2 1AF
Health Informatics,Modernisation Programme,31/03/2023,Computer Software / License  Fees,Modernisation Programme,Cerner Ltd,102202972,"63,112.80 ",Cerner Table 12: RHO Recurring Charges. Monthly  commencing from the Effective Date and continuing until the end of the Term £52 594 monthly for 2023.,W2 1AF
Health Informatics,Modernisation Programme,31/03/2023,Computer Software / License  Fees,Modernisation Programme,Cerner Ltd,102203045,"38,400.00 ",Cerner CCN053 Nuance Drage medical one speech recognition  shared computing services monthly recuring charge £32 000 for 2023. ,W2 1AF
Balance Sheet,Fixed Assets,01/03/2023,Additions - Assets Under Construction,Capital (Estates),Checkmate Fire Solutions Ltd,0000005108,"26,524.15 ",HRI - ICU - SUPPLY AND INSTALLATION OF 1 X DOUBLE DOOR FIRE DOORSET AND FIRE STOPPING OF ALL PENETRATIONS THROUGHTOUT THE WARD AS PER YOUR QUOTE,HX5 9DX
Balance Sheet,L2 Long Term Creditors,10/03/2023,Lease Liabilities under IFRS 16 > 1 year,Finance Leases,Chg-Meridian Uk Ltd,7098235,"51,092.27 ",7 year Lease -  MRI Ingenia 1.5T,TW20 9AB
Families & Specialist Services,Pathology,29/03/2023,Laboratory Bottles And Containers,Path General,Chrystal Consulting Ltd,61973,"105,386.72 ",Managed Service Contract contract and verification charges year 1 of 5 for blood gases and chemstats,M22 5HQ
Balance Sheet,Fixed Assets,29/03/2023,Additions - Assets Under Construction,Capital (Surgical),Chrystal Consulting Ltd,62114,"37,200.00 ",Sales of Equipment  - Anaesthetic Monitors - Buyout cost,M22 5HQ
Balance Sheet,Fixed Assets,22/03/2023,Additions - Assets Under Construction,Capital (His),Cisilion Ltd,INVUK0016806,"79,417.28",Catalyst 9300 48-port(12 mGig  36 2.5Gbps) Network Advantage,KT22 9UT
Balance Sheet,Fixed Assets,22/03/2023,Additions - Assets Under Construction,Capital (His),Cisilion Ltd,INVUK0016806,"1,707.06",Catalyst Stack Power Cable 30 CM Spare,KT22 9UT
Balance Sheet,Fixed Assets,22/03/2023,Additions - Assets Under Construction,Capital (His),Cisilion Ltd,INVUK0016806,"2,571.66",3M Type 1 Stacking Cable,KT22 9UT
Balance Sheet,Fixed Assets,22/03/2023,Additions - Assets Under Construction,Capital (His),Cisilion Ltd,INVUK0016806,"34,745.06",Catalyst 9300 48-port(12 mGig  36 2.5Gbps) Network Advantage,KT22 9UT
Balance Sheet,Fixed Assets,22/03/2023,Additions - Assets Under Construction,Capital (His),Cisilion Ltd,INVUK0016806,"15,742.98",Catalyst 9200L 48-port PoE+  4 x 1G  Network Advantage,KT22 9UT
Balance Sheet,Fixed Assets,22/03/2023,Additions - Assets Under Construction,Capital (His),Cisilion Ltd,INVUK0016806,"24,312.90",C9200L Cisco DNA Advantage  48-port  7 Year Term license,KT22 9UT
Balance Sheet,Fixed Assets,22/03/2023,Additions - Assets Under Construction,Capital (His),Cisilion Ltd,INVUK0016806,"4,963.58",Catalyst 9300 48-port(12 mGig  36 2.5Gbps) Network Advantage,KT22 9UT
Balance Sheet,Fixed Assets,22/03/2023,Additions - Assets Under Construction,Capital (His),Cisilion Ltd,INVUK0016806,"89,147.25",C9300 DNA Advantage  48-Port  7 Year Term License,KT22 9UT
Balance Sheet,Fixed Assets,22/03/2023,Additions - Assets Under Construction,Capital (His),Cisilion Ltd,INVUK0016806,"1,597.47",Catalyst Stack Power Cable 150 CM Spare,KT22 9UT
Balance Sheet,Fixed Assets,22/03/2023,Additions - Assets Under Construction,Capital (His),Cisilion Ltd,INVUK0016806,"104,152.00",Catalyst 9300 48-port UPOE  Network Advantage,KT22 9UT
Balance Sheet,Fixed Assets,22/03/2023,Additions - Assets Under Construction,Capital (His),Cisilion Ltd,INVUK0016806,"85,581.36",C9300 DNA Advantage  48-Port  7 Year Term License,KT22 9UT
Balance Sheet,Fixed Assets,22/03/2023,Additions - Assets Under Construction,Capital (His),Cisilion Ltd,INVUK0016806,"118,586.22",Maintenance 60 months and be for 8x5xNBD. ,KT22 9UT
Balance Sheet,Fixed Assets,29/03/2023,Additions - Assets Under Construction,Capital (His),Cisilion Ltd,INVUK0017345,"124,089.50",Catalyst 9300 48-port(12 mGig  36 2.5Gbps) Network Advantage,KT22 9UT
Balance Sheet,Fixed Assets,29/03/2023,Additions - Assets Under Construction,Capital (His),Cisilion Ltd,INVUK0017345,"89,147.25",C9300 DNA Advantage  48-Port  7 Year Term License,KT22 9UT
Balance Sheet,Fixed Assets,29/03/2023,Additions - Assets Under Construction,Capital (His),Cisilion Ltd,INVUK0017345,"61,414.25",Maintenance 60 months and be for 8x5xNBD. ,KT22 9UT
Balance Sheet,Fixed Assets,01/03/2023,Additions - Assets Under Construction,Capital (Estates),Clifford Cooper & Sons Ltd,62455,"31,227.84 ",HRI - SUPPLY AND INSTALLATION OF A CONDENSATE RECOVERY SCHEME AS PER YOUR TENDER RETURN,CM20 9GY
CHS Facilities,L2 Facilities,12/04/2023,Telephone Installation and Maintenance,Equipment Loan,Creative Software Solutions (Europe) Limited,1104058,"28,242.00 ",Integrated Community Loan Store Equipment Service IT System - Pro-Cloud and TCES,WS13 7AU
Balance Sheet,L2 Current Assets,15/03/2023,Finished Processed Goods,Stock & Work In Progress,Csl Behring Uk Ltd,994053806,"28,495.00 ",Pharmaceutical purchase,RH16 1AH
Balance Sheet,L2 Current Assets,06/04/2023,Finished Processed Goods,Stock & Work In Progress,Csl Behring Uk Ltd,994054517,"28,495.00 ",Pharmaceutical purchase,RH16 1AH
Balance Sheet,Fixed Assets,15/03/2023,Additions - Assets Under Construction,Capital (Community),De Smit Medical Systems Ltd,46337,"48,262.50",BLADDER SCANNER FOR COMMUNITY USE - DESMIT CUBE SCAN BIOCON-900S - 2 YEAR WARRANTY - product code 39S0202001,BA2 2UE
Balance Sheet,Fixed Assets,15/03/2023,Additions - Assets Under Construction,Capital (Community),De Smit Medical Systems Ltd,46337,"4,000.00",CUBEscan BioCon-900s charger - PRODUCT CODE - 39S9905001,BA2 2UE
Balance Sheet,Fixed Assets,15/03/2023,Additions - Assets Under Construction,Capital (Community),De Smit Medical Systems Ltd,46337,550.00,CANVAS BAG /CARRY CASE - BLUE PRODUCT 4B93109001,BA2 2UE
Balance Sheet,Fixed Assets,29/03/2023,Additions - Assets Under Construction,Capital (Surgical),De Soutter Medical Ltd,0000624769,"36,741.12",1289884  MBQ-701 ORTHODRIVE ROTARY HANDPIECE - TWINTRIGGER,HP22 5WF
Balance Sheet,Fixed Assets,29/03/2023,Additions - Assets Under Construction,Capital (Surgical),De Soutter Medical Ltd,0000624769,"30,928.56",1290004 DBK-701 SAGITTAL SAW HANDPIECE (BL) - S89,HP22 5WF
Balance Sheet,Fixed Assets,29/03/2023,Additions - Assets Under Construction,Capital (Surgical),De Soutter Medical Ltd,0000624769,"16,235.01",18280  CQ-710 RECIPROCATING SAW HEAD - S84 HUB,HP22 5WF
Balance Sheet,Fixed Assets,29/03/2023,Additions - Assets Under Construction,Capital (Surgical),De Soutter Medical Ltd,0000624769,"2,472.96",15370 CHUCK - Q-SERIES TO 7.4MM KEYED CHUCK OUTPUT,HP22 5WF
Balance Sheet,Fixed Assets,29/03/2023,Additions - Assets Under Construction,Capital (Surgical),De Soutter Medical Ltd,0000624769,"2,009.28",15480 CHUCK - Q-SERIES TO A.O. SYNTHES DRILL OUTPUT,HP22 5WF
Balance Sheet,Fixed Assets,29/03/2023,Additions - Assets Under Construction,Capital (Surgical),De Soutter Medical Ltd,0000624769,"2,848.32",15470 CHUCK - Q-SERIES TO ZIMMER/HUDSON OUTPUT,HP22 5WF
Balance Sheet,Fixed Assets,29/03/2023,Additions - Assets Under Construction,Capital (Surgical),De Soutter Medical Ltd,0000624769,"2,848.32",15490 CHUCK - Q-SERIES TO A.O. SYNTHES/PROTEK OUTPUT,HP22 5WF
Balance Sheet,Fixed Assets,29/03/2023,Additions - Assets Under Construction,Capital (Surgical),De Soutter Medical Ltd,0000624769,"12,003.93",17240 WQ-710 WIRE/PIN DRIVER 0.7 - 4.0mm,HP22 5WF
Balance Sheet,Fixed Assets,29/03/2023,Additions - Assets Under Construction,Capital (Surgical),De Soutter Medical Ltd,0000624769,"9,281.88",18090 AH-704 ASEPTIC HOUSING,HP22 5WF
Balance Sheet,Fixed Assets,29/03/2023,Additions - Assets Under Construction,Capital (Surgical),De Soutter Medical Ltd,0000624769,"1,297.89",18110 AS-704 ASEPTIC SHIELD,HP22 5WF
Balance Sheet,Fixed Assets,29/03/2023,Additions - Assets Under Construction,Capital (Surgical),De Soutter Medical Ltd,0000624769,"1,313.76",17920 AB-704 BATTERY - ASEPTIC Li-Ion 14.6v,HP22 5WF
Balance Sheet,Fixed Assets,29/03/2023,Additions - Assets Under Construction,Capital (Surgical),De Soutter Medical Ltd,0000624769,"4,667.85",18160 STD SIZE STERI-CASE & TRAY - 2 x MBQ-700 - ASEPTIC,HP22 5WF
Balance Sheet,Fixed Assets,29/03/2023,Additions - Assets Under Construction,Capital (Surgical),De Soutter Medical Ltd,0000624769,"2,800.71",18150 STD SIZE STERI-CASE & TRAY - 3 x MBQ-700 - ASEPTIC,HP22 5WF
Balance Sheet,Fixed Assets,29/03/2023,Additions - Assets Under Construction,Capital (Surgical),De Soutter Medical Ltd,0000624769,"4,598.16",18570 CORD SET - 4 METRE,HP22 5WF
Balance Sheet,Fixed Assets,29/03/2023,Additions - Assets Under Construction,Capital (Surgical),De Soutter Medical Ltd,0000624771,"94,233.02 ",HRI -  POWER TOOLS,HP22 5WF
Health Informatics,Service Delivery,31/03/2023,Computer Hardware Purchases,Service Delivery,Dell Corporation Ltd,7402895098,"36,384.00 ",Latitude 5430 BTS Configuration,RG12 1LF
Health Informatics,Service Delivery,06/04/2023,Computer Hardware Purchases,Service Delivery,Dell Corporation Ltd,7402896851,"58,478.40 ",Latitude 5430 BTS Configuration,RG12 1LF
Health Informatics,Service Delivery,06/04/2023,Computer Hardware Purchases,Service Delivery,Dell Corporation Ltd,7402896851,"58,478.40 ","Dell Eco Pro Slim Briefcase 15 - PO1520CS - Fits most laptops up to15""",RG12 1LF
Health Informatics,Service Delivery,06/04/2023,Computer Hardware Purchases,Service Delivery,Dell Corporation Ltd,7402897125,"39,000.00 ",Dell Pro Webcam - WB5023,RG12 1LF
Balance Sheet,Fixed Assets,06/04/2023,Additions - Assets Under Construction,Capital (His),Dell Corporation Ltd,7402897521,"29,994.00 ",Dell PowerEdge R450 Server,RG12 1LF
Balance Sheet,Fixed Assets,06/04/2023,Additions - Assets Under Construction,Capital (His),Dell Corporation Ltd,7402897522,"29,994.00 ",Dell PowerEdge R450 Server,RG12 1LF
CHS Estates,L2 Estates,10/03/2023,Electricity,Estates Operations,EDF Energy Customers Ltd,000014505351,"261,471.05 ",Mains Electric for Calderdale Royal Hospital,W1T 4EZ
CHS Estates,L2 Estates,22/03/2023,Electricity,Estates Operations,EDF Energy Customers Ltd,000014750783,"263,473.85 ",Mains Electric for Calderdale Royal Hospital,W1T 4EZ
Surgery & Anaesthetics,Surgical Divisional Support,29/03/2023,Computer Software / License  Fees,Support Services,Eido Healthcare Ltd,22J1202,"26,613.84 ",Renewal of Annual Licence of EIDO INFORMLicence runs from 21/02/23 - 20/02/24,NG2 6AU
Balance Sheet,Fixed Assets,12/04/2023,Additions - Assets Under Construction,Capital (Estates),Fresenius Kabi Ltd,914692632,"227,700.00 ",ITEM - Z019730DESCRIPTION - Agilia VP MC WiFi infusion pumpS,WA7 1NT
Central & Technical,Tech Accounting,01/03/2023,CCG Income,Tech Accounting,Greenwood PCN c/o Croft Medical Services Ltd,LTCHUDDSPCNS,"147,188.00 ",UECB WINTER MONIES ALLOCATION - KIRKLEES PRIMARY CARE - ADDITIONAL NURSING CAPACITY TO SUPPORT LONG TERM CONDITION REVIEWS,HD2 2RU
Medical Division,Medical Divisional Management,08/03/2023,Contractual Clinical Services,Medical Divisional Management Support Services,Gutcare.Org Ltd,025,"31,100.00 ",Provision of Insourced Rheumatology  Neurology and Dermatology insourcing services,RM11 2EZ
Medical Division,Medical Divisional Management,08/03/2023,Contractual Clinical Services,Medical Divisional Management Support Services,Gutcare.Org Ltd,029,"39,750.00 ",Provision of Insourced Rheumatology  Neurology and Dermatology insourcing services,RM11 2EZ
Medical Division,Medical Divisional Management,08/03/2023,Contractual Clinical Services,Medical Divisional Management Support Services,Gutcare.Org Ltd,034,"51,250.00 ",Provision of Insourced Rheumatology  Neurology and Dermatology insourcing services,RM11 2EZ
Balance Sheet,Fixed Assets,01/03/2023,Additions - Assets Under Construction,Capital (Surgical),Haag-Streit Uk Ltd,SI30040729,"79,809.45",Haag-Streit BP900 LED slit lamp  RM02  IM600 (BP)  HSM600 (large)  silver headrest (with lower part)  table fittings & fixed background5602743LF,CM20 2TT
Balance Sheet,Fixed Assets,01/03/2023,Additions - Assets Under Construction,Capital (Surgical),Haag-Streit Uk Ltd,SI30040729,315.00,Protection Screen for BP900 slit lamp7221002,CM20 2TT
Balance Sheet,Fixed Assets,01/03/2023,Additions - Assets Under Construction,Capital (Surgical),Haag-Streit Uk Ltd,SI30040729,"4,050.00","21.5"" All-in-One PC1491191",CM20 2TT
Balance Sheet,Fixed Assets,01/03/2023,Additions - Assets Under Construction,Capital (Surgical),Haag-Streit Uk Ltd,SI30040729,144.75,Mini USB keyboard and mouse1480036,CM20 2TT
Balance Sheet,Fixed Assets,01/03/2023,Additions - Assets Under Construction,Capital (Surgical),Haag-Streit Uk Ltd,SI30040729,"1,160.70",Isolating Transformer1450153,CM20 2TT
Balance Sheet,Fixed Assets,29/03/2023,Additions - Assets Under Construction,Capital (Surgical),Haag-Streit Uk Ltd,SI30041477,"38,969.12",Haag-Streit BP900 LED Slit Lamp with standard accessories  on HSM600 table (small 860x440mm)5602740,CM20 2TT
Balance Sheet,Fixed Assets,29/03/2023,Additions - Assets Under Construction,Capital (Surgical),Haag-Streit Uk Ltd,SI30041477,"3,366.00",Goldmann Model AT 900M/Q tonometer (removable)581030,CM20 2TT
Balance Sheet,Fixed Assets,29/03/2023,Additions - Assets Under Construction,Capital (Surgical),Haag-Streit Uk Ltd,SI30041477,210.00,Protection Screen for BP900 slit lamp7221002,CM20 2TT
Balance Sheet,Fixed Assets,29/03/2023,Additions - Assets Under Construction,Capital (Surgical),Haag-Streit Uk Ltd,SI30041482,"19,484.56",Haag-Streit BP900 LED Slit Lamp with standard accessories  on HSM600 table (small 860x440mm)5602740,CM20 2TT
Balance Sheet,Fixed Assets,29/03/2023,Additions - Assets Under Construction,Capital (Surgical),Haag-Streit Uk Ltd,SI30041482,"1,683.00",Goldmann Model AT 900M/Q tonometer (removable)581030,CM20 2TT
Balance Sheet,Fixed Assets,29/03/2023,Additions - Assets Under Construction,Capital (Surgical),Haag-Streit Uk Ltd,SI30041482,105.00,Protection Screen for BP900 slit lamp7221002,CM20 2TT
Balance Sheet,Fixed Assets,29/03/2023,Additions - Assets Under Construction,Capital (Surgical),Hamilton Medical UK Ltd,24120044,"79,166.50 ",Ventilator Hamilton T1 1610060  Cust Int  UK Pow Cord  Lang Kit  NIST Oxy Conn  Oxy Hose  Adult/Paed  3000 Mnt Hand  CO2  Lead-Free O2 Sens  Ham-T1 Batt  DuoPAP/APRV  NIV/NIV-ST  High Flow Oxy Ther  Speak Val  Tren Loops,B46 1JH
Balance Sheet,Fixed Assets,15/03/2023,Additions - Assets Under Construction,Capital (Estates),HUBER Car Park Systems UK Ltd,10350-9999,"35,400.00 ",Payment Certificate 01 dd 16.02.2023,SL3 6EZ
Balance Sheet,Fixed Assets,24/03/2023,Additions - Assets Under Construction,CAPITAL (Reconfig HRI),Integrated Health Projects,23030009,"2,202,519.06 ",SUBMISSION FOR THE DELIVERY OF A NEW ACCIDENT AND EMERGENCY BUILD AT THE HUDDERSFIELD ROYAL INFIRMARY ,WD24 4WW
Balance Sheet,L2 Current Assets,24/03/2023,Finished Processed Goods,Stock & Work In Progress,Janssen-Cilag Ltd,930907227,"35,769.60 ",Pharmaceutical purchase,HP12 4EG
Balance Sheet,L2 Current Assets,24/03/2023,Finished Processed Goods,Stock & Work In Progress,Janssen-Cilag Ltd,930909049,"35,769.60 ",Pharmaceutical purchase,HP12 4EG
Surgery & Anaesthetics,Operating Services,10/03/2023,Med Surg Eqpt General,Operating Services,Johnson And Johnson Medical Ltd,22470692-RI10656,"32,270.62 ",HARH36 - HARMONIC ACE PLUS 7. 5MM 36CM LEN. SHEARS W. ADV HEMOS. NSLX137S - ENSEAL X1 STRAIGHT 37CM SHAFT. ER320 - LIGACLIP ENDO ROTATING MCA GST60D - GST GOLD RELOAD 60MM 6 ROW. GST60G - GST GREEN RELOAD 60MM 6 ROW,RG40 3EW
Balance Sheet,Fixed Assets,01/03/2023,Additions - Assets Under Construction,Capital (Fss),Karl Storz Endoscopy (Uk) Ltd,6020153069,"78,563.62 ",Contact Endoscopes for Laryngoscopy and Rhinoscopy,SL14TQ
Central & Technical,Tech Accounting,03/03/2023,CCG Income,Tech Accounting,Kirklees Council,8607759028,"77,000.00",CAPACITY FUND - KIRKLEES COUNCIL ADDITIONAL SOCIAL WORKERS,HD1 2NF
Central & Technical,Tech Accounting,03/03/2023,CCG Income,Tech Accounting,Kirklees Council,8607759028,"16,333.00",CAPACITY FUND - KIRKLEES COUNCIL RESTART INCREASED CARE PACKAGES,HD1 2NF
Estates & Facilities,Estates,03/03/2023,Rates,Estates Operations,Kirklees Council,969286425_2022,"43,093.00 ","business rates for Huddersfield Royal Infirmary invoice 969286425_2022	",HD1 2NF
Families & Specialist Services,Pharmacy,17/03/2023,Healthcare From Commercial Sector,Pharm Gen,L Rowland & Company (Retail) Ltd,1800000103,"95,044.66",Rowlands Outpatient Pharmacy contract DISPENSING FEE,WA7 3DJ
Families & Specialist Services,Pharmacy,17/03/2023,Healthcare From Commercial Sector,Pharm Gen,L Rowland & Company (Retail) Ltd,1800000103,"864,964.50 ",Rowlands Outpatient Pharmacy Contract  medicines costs,WA7 3DJ
Balance Sheet,L2 Long Term Creditors,31/03/2023,Lease Liabilities under IFRS 16 > 1 year,Finance Leases,Landa Asset Management PLC,34209,"25,072.50 ",Beechwood Community Health Centre Rent 25/03/2023 - 23/06/2023,NW1 3BG
Balance Sheet,Fixed Assets,15/03/2023,Additions - Assets Under Construction,Capital (Surgical),Lynton Lasers Ltd,SIN054868,"90,000.00 ",SIRIUS Th:Fibre Laser as per quotation ,CW4 8AF
Balance Sheet,Fixed Assets,06/04/2023,Additions - Assets Under Construction,Capital (Surgical),Lynton Lasers Ltd,SIN055731,"90,000.00 ",SIRIUS Th:Fibre Laser as per quotation ,CW4 8AF
Balance Sheet,L2 Current Assets,17/03/2023,Other Debtors < One Year,Other Debtors,Medevolve Ltd,MSI-002812,"51,950.00 ",Ultrasound combined EMG machine with HL7 Connectivity Licence as per quote,GU7 1EW
Families & Specialist Services,Radiology,03/03/2023,Med Surg Eqpt Hire,Ct,Medispace B.V.,20230167,"30,025.92 ",Rental of a CM050 CT scan box with Canon Prime 160 slice CT scanner plus 2 radiographers to run the service 8am-20.00pm 7 days per week ,2712 PJ  The Netherlands
Families & Specialist Services,Radiology,09/03/2023,Med Surg Eqpt Hire,Ct,Medispace B.V.,20230191,"30,025.92 ",Rental of a CM050 CT scan box with Canon Prime 160 slice CT scanner plus 2 radiographers to run the service 8am-20.00pm 7 days per week ,2712 PJ  The Netherlands
Families & Specialist Services,Radiology,09/03/2023,Med Surg Eqpt Hire,Ct,Medispace B.V.,20230201,"30,025.92 ",Rental of a CM050 CT scan box with Canon Prime 160 slice CT scanner plus 2 radiographers to run the service 8am-20.00pm 7 days per week ,2712 PJ  The Netherlands
Recharges,Recharges,03/03/2023,Healthcare From NHS Trusts,Recharges,Mid Yorkshire Hospitals NHS Trust,1600022473,"52,918.00 ",Various services provided by agreement as per West Yorkshire Association of Acute Trusts agreed methodology,WF1 4DG
Families & Specialist Services,Radiology,10/03/2023,Imaging Equipment Purchases,Rad General,Mid Yorkshire Hospitals NHS Trust,1600022480,"29,100.00 ",regional imaging collaborative sharing solution Qtr 4,WF1 4DG
Recharges,Recharges,22/03/2023,Healthcare From NHS Trusts,Recharges,Mid Yorkshire Hospitals NHS Trust,1600022661,"52,918.00 ",Various services provided by agreement as per West Yorkshire Association of Acute Trusts agreed methodology,WF1 4DG
Families & Specialist Services,Radiology,24/03/2023,Imaging Equipment Purchases,Rad General,Mid Yorkshire Hospitals NHS Trust,1600022688,"29,000.00 ",Various services provided by agreement as per West Yorkshire Association of Acute Trusts agreed methodology,WF1 4DG
Families & Specialist Services,Pathology,15/03/2023,Blood Products,Blood Sciences,NHS Blood And Transplant,7012156,"85,109.73 ",MONTHLY CONTRACT CHARGE BLOOD & COMPONENTS,LS15 7TW
Families & Specialist Services,Pathology,15/03/2023,Blood Products,Blood Sciences,NHS Blood And Transplant,7012157,"32,812.05 ",MONTHLY CONTRACT CHARGE BLOOD & COMPONENTS,LS15 7TW
CHS Balance Sheet,Current Liabilities,15/03/2023,Non- NHS  Trade Creditors < One Year,Other Creditors,NHS Supply Chain,1123250878,"172,508.48 ",Goods delivered week ending 03-Feb-2023,DE55 4QJ
CHS Balance Sheet,Current Liabilities,15/03/2023,Non- NHS  Trade Creditors < One Year,Other Creditors,NHS Supply Chain,1123255488,"223,082.63 ",Goods delivered week ending 03-Feb-2023,DE55 4QJ
CHS Balance Sheet,Current Liabilities,10/03/2023,Non- NHS  Trade Creditors < One Year,Other Creditors,NHS Supply Chain,1123256105,"154,101.06 ",Goods delivered week ending 10-Feb-2023,DE55 4QJ
CHS Balance Sheet,Current Liabilities,10/03/2023,Non- NHS  Trade Creditors < One Year,Other Creditors,NHS Supply Chain,1123262020,"119,765.79 ",Goods delivered week ending 10-Feb-2023,DE55 4QJ
CHS Balance Sheet,Current Liabilities,17/03/2023,Non- NHS  Trade Creditors < One Year,Other Creditors,NHS Supply Chain,1123264584,"127,581.25 ",Goods delivered week ending 17-Feb-2023,DE55 4QJ
CHS Balance Sheet,Current Liabilities,17/03/2023,Non- NHS  Trade Creditors < One Year,Other Creditors,NHS Supply Chain,1123268672,"133,625.37 ",Goods delivered week ending 17-Feb-2023,DE55 4QJ
CHS Balance Sheet,Current Liabilities,24/03/2023,Non- NHS  Trade Creditors < One Year,Other Creditors,NHS Supply Chain,1123271986,"128,189.21 ",Goods delivered week ending 24-Feb-2023,DE55 4QJ
CHS Balance Sheet,Current Liabilities,24/03/2023,Non- NHS  Trade Creditors < One Year,Other Creditors,NHS Supply Chain,1123275981,"207,828.85 ",Goods delivered week ending 24-Feb-2023,DE55 4QJ
CHS Balance Sheet,Current Liabilities,31/03/2023,Non- NHS  Trade Creditors < One Year,Other Creditors,NHS Supply Chain,1123278063,"146,659.96 ",Goods delivered week ending 03/03/2023,DE55 4QJ
CHS Balance Sheet,Current Liabilities,31/03/2023,Non- NHS  Trade Creditors < One Year,Other Creditors,NHS Supply Chain,1123283131,"132,355.96 ",Goods delivered week ending 03/03/2023,DE55 4QJ
CHS Balance Sheet,Current Liabilities,06/04/2023,Non- NHS  Trade Creditors < One Year,Other Creditors,NHS Supply Chain,1123285492,"111,860.66 ",Goods delivered week ending 10-Mar-2023,DE55 4QJ
CHS Balance Sheet,Current Liabilities,06/04/2023,Non- NHS  Trade Creditors < One Year,Other Creditors,NHS Supply Chain,1123289993,"128,970.00 ",Goods delivered week ending 10-Mar-2023,DE55 4QJ
Balance Sheet,Fixed Assets,12/04/2023,Additions - Assets Under Construction,Capital (Medicine & Elderly),NHS Supply Chain,9523001761,"65,538.89 ",HRI Acute Floor x 2 ultrasound machines Venue Go NHSSC_AM_1517101022,DE55 4QJ
CHS Estates,L2 Estates,01/03/2023,Med Surg Eqpt Mtce Contracts,Management Estates,NHS Supply Chain - Maintenance,2123007047,"30,439.43 ",SERVICE AND MANTENANCE CONTRACT -FULLY COMPREHENSIVE COVER FOR KADAKDR7500N SYSTEM AT TODMORDEN. ,DE55 4QJ
CHS Estates,L2 Estates,29/03/2023,Med Surg Eqpt Mtce Contracts,Maintenance & Leases,NHS Supply Chain - Maintenance,2123008050,"336,916.75 ",Maintenance of Endoscopes & electro-medical equipment.Extension Option 2 : for the period 1 April 2022 - 31 March 2023,DE55 4QJ
CHS Estates,L2 Estates,29/03/2023,Med Surg Eqpt Mtce Contracts,Maintenance & Leases,NHS Supply Chain - Maintenance,2123008051,"64,980.00 ",Year 4 of 5 - Platinum Service Package of Ultrasound Equipment Including Physiotherapy Equipment and Probe PoolContract period 1 April 2023 - 31 March 2024Payment terms: annual in advance,DE55 4QJ
CHS Estates,L2 Estates,29/03/2023,Med Surg Eqpt Mtce Contracts,Management Estates,NHS Supply Chain - Maintenance,2123008055,"43,712.17 ",3 of 5 Year TOP Service Package Maintenance of the Artis Zee Ceiling Angio System situated in Angio Room 5 at CRHAgreement Commencing - 1st April 2023 - 31st March 2024,DE55 4QJ
CHS Estates,L2 Estates,29/03/2023,Med Surg Eqpt Mtce Contracts,Management Estates,NHS Supply Chain - Maintenance,2123008056,"188,406.82 ",3 of 5 year Pro-Rata Focus Maintenance for Optimas & Ass Kit.1st April 2023 - 31st March 2024,DE55 4QJ
CHS Estates,L2 Estates,29/03/2023,Med Surg Eqpt Mtce Contracts,Management Estates,NHS Supply Chain - Maintenance,2123008058,"37,905.00 ",1 of 2 Year Platinum Maintenance for 7 x Aplio i700 with  1st April 2023 - 31st March 2024,DE55 4QJ
Corporate Services,Finance,24/03/2023,Computer Software / License  Fees,Finance,Northumbria Healthcare NHS Foundation Trust,7550002181,"226,866.00 ",Financial Software system costs,NE27 0QJ
Balance Sheet,L2 Current Assets,03/03/2023,Finished Processed Goods,Stock & Work In Progress,Novartis Pharmaceuticals Uk Ltd,92727559,"42,201.60 ",Pharmaceutical purchase,W12 7FQ
Balance Sheet,Fixed Assets,08/03/2023,Additions - Assets Under Construction,Capital (Surgical),Olympus Keymed,CD2826203,"48,735.00 ",ESG-410 Electrosurgical GeneratorWA91307W,SS2 5QH
Balance Sheet,Fixed Assets,08/03/2023,Additions - Assets Under Construction,Capital (Surgical),Olympus Keymed,CD2826204,"2,335.34",NHS Flexible Framework Items (Lot 20)K10026145 KV-6 Suction Pump - UK/ROW,SS2 5QH
Balance Sheet,Fixed Assets,08/03/2023,Additions - Assets Under Construction,Capital (Surgical),Olympus Keymed,CD2826204,"1,998.22",NHS Flexible Framework Items (Lot 20)K10001144 Flushing Pump OFP-2-UK,SS2 5QH
Balance Sheet,Fixed Assets,08/03/2023,Additions - Assets Under Construction,Capital (Surgical),Olympus Keymed,CD2826204,"46,011.00",NHS Flexible Framework Items (Lot 20)N6022550 CF-EZ1500DL EVIS x1 Colonoscope,SS2 5QH
Balance Sheet,Fixed Assets,22/03/2023,Additions - Assets Under Construction,Capital (Surgical),Olympus Keymed,CD2828735,"2,756.00",ENDO LED - Flexible ScopesCompatible with flexible: Cystoscope CYF-5 and CYF-5A  Naso-laryngoscope ENF-GP  Intubation fiberscopes LF-DP  LF-GP and LF-TPWA91502A,SS2 5QH
Balance Sheet,Fixed Assets,22/03/2023,Additions - Assets Under Construction,Capital (Surgical),Olympus Keymed,CD2828735,"26,943.00 ",ENF-GP2 Rhino-LaryngoscopeN6006350,SS2 5QH
Surgery & Anaesthetics,Operating Services,29/03/2023,Med Surg Eqpt Disposable,Operating Services,Olympus Keymed,CD2830428,"9,190.00",WA22306D - SURGMASTER 24FR 30 DEGREE LOOP ELECT MEDIUM (For resection in saline 0.2 wire  single use  medium. For 30 telescope (12pcs) - Box - 12,SS2 5QH
Surgery & Anaesthetics,Operating Services,29/03/2023,Med Surg Eqpt Disposable,Operating Services,Olympus Keymed,CD2830428,"5,240.00",WA22566S - PLASMABUTTON - OVAL HF-resection electrode  oval button  24 FR.  12-30 deg  sterile  single use  pack of 5 for TURis - Box - 5,SS2 5QH
Surgery & Anaesthetics,Operating Services,29/03/2023,Med Surg Eqpt Disposable,Operating Services,Olympus Keymed,CD2830428,"11,345.00",WA22351C - SURGMASTER ROLLER ELECTRODE 24 - 28 FR - Pack - 12,SS2 5QH
Balance Sheet,Fixed Assets,29/03/2023,Additions - Assets Under Construction,Capital (Surgical),Olympus Keymed,CR50016,"-32,490.00 ",ESG-410 Electrosurgical GeneratorWA91307W,SS2 5QH
Balance Sheet,Fixed Assets,08/03/2023,Other Debtors < One Year,Capital (Medicine & Elderly),Optima Medical Ltd,26530,"105,522.00 ",3 Channel Keypoint Focus Portable NCS/EMG System. 3 Channel Keypoint G4 NCS/EMG System. Review Software (USB DONGLE) for Keypoint. 6 Channel Keypoint G4 NCS/EMG/EP System,GU2 7AA
CHS Estates,L2 Estates,01/04/2023,Electricity,Estates Operations,Opus Energy Ltd,42026133,"-407,087.88 ",Mains electricity HRI,"YO8 8PH	"
CHS Estates,L2 Estates,01/04/2023,Electricity,Estates Operations,Opus Energy Ltd,42026134,"-88,713.35 ",Mains electricity HRI,"YO8 8PH	"
CHS Estates,L2 Estates,01/04/2023,Electricity,Estates Operations,Opus Energy Ltd,42026135,"-102,760.96 ",Mains electricity HRI,"YO8 8PH	"
CHS Estates,L2 Estates,01/04/2023,Electricity,Estates Operations,Opus Energy Ltd,42026136,"-102,558.22 ",Mains electricity HRI,"YO8 8PH	"
CHS Estates,L2 Estates,01/04/2023,Electricity,Estates Operations,Opus Energy Ltd,42026137,"-95,731.74 ",Mains electricity HRI,"YO8 8PH	"
CHS Estates,L2 Estates,01/04/2023,Electricity,Estates Operations,Opus Energy Ltd,42026138,"-100,584.40 ",Mains electricity HRI,"YO8 8PH	"
CHS Estates,L2 Estates,01/04/2023,Electricity,Estates Operations,Opus Energy Ltd,42026142,"-97,208.04 ",Mains electricity HRI,"YO8 8PH	"
CHS Estates,L2 Estates,01/04/2023,Electricity,Estates Operations,Opus Energy Ltd,42026143,"-99,385.48 ",Mains electricity HRI,"YO8 8PH	"
CHS Estates,L2 Estates,01/04/2023,Electricity,Estates Operations,Opus Energy Ltd,42026144,"-79,910.68 ",Mains electricity HRI,"YO8 8PH	"
CHS Estates,L2 Estates,01/04/2023,Electricity,Estates Operations,Opus Energy Ltd,42026145,"-100,918.43 ",Mains electricity HRI,"YO8 8PH	"
CHS Estates,L2 Estates,01/04/2023,Electricity,Estates Operations,Opus Energy Ltd,42026146,"-98,329.34 ",Mains electricity HRI,"YO8 8PH	"
CHS Estates,L2 Estates,01/04/2023,Electricity,Estates Operations,Opus Energy Ltd,42026147,"-101,636.77 ",Mains electricity HRI,"YO8 8PH	"
CHS Estates,L2 Estates,01/04/2023,Electricity,Estates Operations,Opus Energy Ltd,42026148,"-94,214.15 ",Mains electricity HRI,"YO8 8PH	"
CHS Estates,L2 Estates,01/04/2023,Electricity,Estates Operations,Opus Energy Ltd,42026149,"-90,086.60 ",Mains electricity HRI,"YO8 8PH	"
CHS Estates,L2 Estates,01/04/2023,Electricity,Estates Operations,Opus Energy Ltd,42026150,"-102,219.79 ",Mains electricity HRI,"YO8 8PH	"
CHS Estates,L2 Estates,01/04/2023,Electricity,Estates Operations,Opus Energy Ltd,42026151,"-876,525.50 ",Mains electricity HRI,"YO8 8PH	"
CHS Estates,L2 Estates,08/03/2023,Electricity,Estates Operations,Opus Energy Ltd,42136856,"-97,807.13 ",Mains electricity HRI,"YO8 8PH	"
CHS Estates,L2 Estates,01/04/2023,Electricity,Estates Operations,Opus Energy Ltd,42136871,"2,737,913.96 ",Mains electricity HRI,"YO8 8PH	"
CHS Estates,L2 Estates,01/04/2023,Electricity,Estates Operations,Opus Energy Ltd,42136871_,"-34,905.00 ",Mains electricity HRI,"YO8 8PH	"
CHS Estates,L2 Estates,08/03/2023,Electricity,Estates Operations,Opus Energy Ltd,42136879,"103,456.92 ",Mains electricity HRI,"YO8 8PH	"
CHS Estates,L2 Estates,08/03/2023,Electricity,Estates Operations,Opus Energy Ltd,42310939,"102,982.33 ",Mains electricity HRI,"YO8 8PH	"
CHS Estates,L2 Estates,08/03/2023,Electricity,Estates Operations,Opus Energy Ltd,42360273,"104,497.67 ",Mains electricity HRI,"YO8 8PH	"
CHS Estates,L2 Estates,29/03/2023,Electricity,Estates Operations,Opus Energy Ltd,42424297,"96,027.29 ",Mains electricity HRI,"YO8 8PH	"
Community Division,Community Nursing,01/03/2023,Continence Products,Bladder and Bowel Service,Paul Hartmann Ltd,71638324O,"26,625.29 ",Contract for provision of containment pads for Calderdale community Adults & children. ,OL10 2TT
Central & Technical,Tech Accounting,15/03/2023,CCG Income,Tech Accounting,Pennine Gp Alliance Ltd,INV-0751,"106,740.00 ",UECB WINTER MONIES ALLOCATION - CALDERDALE CLINICAL LEADERS VIA PENNINE GP ALLIANCE - INCREASING URGENT CARE CAPACITY FACE TO FACE FOR SUNDAYS AND BANK HOLIDAYS,HX1 4JG
Balance Sheet,L2 Long Term Creditors,24/03/2023,Lease Liabilities under IFRS 16 > 1 year,Finance Leases,Pennine Property Partnership Llp,LINV53385,"227,979.60 ",Acre Mill Rent 25/03/2023 23/06/2023,WA4 6HL
Corporate Services,Service Performance,29/03/2023,Contract : Other External,Properties,Pennine Property Partnership Llp,SINV3289,"48,516.60 ",Acre Mill Service Charge Recharge - February 2023,WA4 6HL
Pmu,Pmu,01/03/2023,Contract : Other External,Pmu,Pilz Ltd,HPS.2023.01,"27,706.87 ",POV03W: 50% share of gross margin Povidone/iodine product (January receipts),S75 3SP
Pmu,Pmu,29/03/2023,Contract : Other External,Pmu,Pilz Ltd,HPS.2023.02,"41,353.13 ",POV03W: 50% share of gross margin Povidone/iodine product (February receipts),S75 3SP
Surgery & Anaesthetics,Surgical Divisional Support,08/03/2023,Healthcare From Commercial Sector,Support Services,Pioneer Healthcare Ltd,432,"29,860.00 ",Insourcing Services Ophthalmology LA - 11th  18th Ophthalmology GA 10th  17th,S10 5UB
Surgery & Anaesthetics,Surgical Divisional Support,08/03/2023,Healthcare From Commercial Sector,Support Services,Pioneer Healthcare Ltd,433,"26,307.00 ",Insourcing Services ENT CHFT Book 3rd  10th ENT PH Book 17th,S10 5UB
Surgery & Anaesthetics,Surgical Divisional Support,12/04/2023,Healthcare From Commercial Sector,Support Services,Pioneer Healthcare Ltd,740,"26,224.00 ",Insourcing Services February 2023 Neurology,S10 5UB
Medical Division,Emergency Medicine,03/03/2023,B5 Agency Nursing,A&E Nursing,Red Group Personnel Ltd,050223CH,"1,343.33 ",B5 Agency Nursing,HA3 5AB
Corporate Services,RAFT,03/03/2023,B5 Agency Nursing,Central Operations Team CORP,Red Group Personnel Ltd,050223CH,574.44 ,B5 Agency Nursing,HA3 5AB
Medical Division,Medical Specialities,03/03/2023,B5 Agency Nursing,Gastroenterology,Red Group Personnel Ltd,050223CH,"1,509.26 ",B5 Agency Nursing,HA3 5AB
Medical Division,Acute Medical,03/03/2023,B5 Agency Nursing,General Medicine,Red Group Personnel Ltd,050223CH,"9,660.91 ",B5 Agency Nursing,HA3 5AB
Surgery & Anaesthetics,General Surgery,03/03/2023,B5 Agency Nursing,General Surgery,Red Group Personnel Ltd,050223CH,957.41 ,B5 Agency Nursing,HA3 5AB
Medical Division,Acute Medical,03/03/2023,B5 Agency Nursing,Geriatric Medicine,Red Group Personnel Ltd,050223CH,"3,674.64 ",B5 Agency Nursing,HA3 5AB
Families & Specialist Services,Womens,03/03/2023,B5 Agency Nursing,Gynaecology,Red Group Personnel Ltd,050223CH,859.21 ,B5 Agency Nursing,HA3 5AB
Medical Division,Integrated Medical Specialities,03/03/2023,B5 Agency Nursing,Ims Stroke / Rehabilitation,Red Group Personnel Ltd,050223CH,"1,746.91 ",B5 Agency Nursing,HA3 5AB
Families & Specialist Services,Childrens,03/03/2023,B5 Agency Nursing,Inpatients Paediatrics,Red Group Personnel Ltd,050223CH,733.55 ,B5 Agency Nursing,HA3 5AB
Surgery & Anaesthetics,Operating Services,03/03/2023,B5 Agency Nursing,Operating Services,Red Group Personnel Ltd,050223CH,"6,144.60 ",B5 Agency Nursing,HA3 5AB
Medical Division,Medical Specialities,03/03/2023,B5 Agency Nursing,Respiratory,Red Group Personnel Ltd,050223CH,"4,794.12 ",B5 Agency Nursing,HA3 5AB
Surgery & Anaesthetics,Orthopaedics,03/03/2023,B5 Agency Nursing,Trauma & Orthopaedics,Red Group Personnel Ltd,050223CH,"1,303.89 ",B5 Agency Nursing,HA3 5AB
Medical Division,Emergency Medicine,31/03/2023,B5 Agency Nursing,A&E Nursing,Red Group Personnel Ltd,050323CH,"2,141.03 ",B5 Agency Nursing,HA3 5AB
Medical Division,Medical Specialities,31/03/2023,B5 Agency Nursing,Cardiology,Red Group Personnel Ltd,050323CH,537.37 ,B5 Agency Nursing,HA3 5AB
Corporate Services,RAFT,31/03/2023,B5 Agency Nursing,Central Operations Team CORP,Red Group Personnel Ltd,050323CH,359.03 ,B5 Agency Nursing,HA3 5AB
Surgery & Anaesthetics,General Surgery,31/03/2023,B5 Agency Nursing,Endoscopy,Red Group Personnel Ltd,050323CH,909.54 ,B5 Agency Nursing,HA3 5AB
Medical Division,Medical Specialities,31/03/2023,B5 Agency Nursing,Gastroenterology,Red Group Personnel Ltd,050323CH,813.79 ,B5 Agency Nursing,HA3 5AB
Medical Division,Acute Medical,31/03/2023,B5 Agency Nursing,General Medicine,Red Group Personnel Ltd,050323CH,"6,027.15 ",B5 Agency Nursing,HA3 5AB
Surgery & Anaesthetics,General Surgery,31/03/2023,B5 Agency Nursing,General Surgery,Red Group Personnel Ltd,050323CH,"2,378.56 ",B5 Agency Nursing,HA3 5AB
Medical Division,Acute Medical,31/03/2023,B5 Agency Nursing,Geriatric Medicine,Red Group Personnel Ltd,050323CH,"3,302.45 ",B5 Agency Nursing,HA3 5AB
Medical Division,Integrated Medical Specialities,31/03/2023,B5 Agency Nursing,Ims Stroke / Rehabilitation,Red Group Personnel Ltd,050323CH,"4,523.08 ",B5 Agency Nursing,HA3 5AB
Families & Specialist Services,Childrens,31/03/2023,B5 Agency Nursing,Inpatients Paediatrics,Red Group Personnel Ltd,050323CH,"2,140.08 ",B5 Agency Nursing,HA3 5AB
Surgery & Anaesthetics,Operating Services,31/03/2023,B5 Agency Nursing,Operating Services,Red Group Personnel Ltd,050323CH,"7,168.70 ",B5 Agency Nursing,HA3 5AB
Medical Division,Medical Specialities,31/03/2023,B5 Agency Nursing,Respiratory,Red Group Personnel Ltd,050323CH,"1,787.12 ",B5 Agency Nursing,HA3 5AB
Surgery & Anaesthetics,Orthopaedics,31/03/2023,B5 Agency Nursing,Trauma & Orthopaedics,Red Group Personnel Ltd,050323CH,"1,201.18 ",B5 Agency Nursing,HA3 5AB
Medical Division,Emergency Medicine,10/03/2023,B5 Agency Nursing,A&E Nursing,Red Group Personnel Ltd,120223CH,"5,048.79 ",B5 Agency Nursing,HA3 5AB
Corporate Services,RAFT,10/03/2023,B5 Agency Nursing,Central Operations Team CORP,Red Group Personnel Ltd,120223CH,"2,736.58 ",B5 Agency Nursing,HA3 5AB
Surgery & Anaesthetics,Head & Neck,10/03/2023,B5 Agency Nursing,Ent,Red Group Personnel Ltd,120223CH,191.47 ,B5 Agency Nursing,HA3 5AB
Medical Division,Medical Specialities,10/03/2023,B5 Agency Nursing,Gastroenterology,Red Group Personnel Ltd,120223CH,669.72 ,B5 Agency Nursing,HA3 5AB
Medical Division,Acute Medical,10/03/2023,B5 Agency Nursing,General Medicine,Red Group Personnel Ltd,120223CH,"8,277.91 ",B5 Agency Nursing,HA3 5AB
Medical Division,Acute Medical,10/03/2023,B5 Agency Nursing,Geriatric Medicine,Red Group Personnel Ltd,120223CH,"2,656.32 ",B5 Agency Nursing,HA3 5AB
Families & Specialist Services,Womens,10/03/2023,B5 Agency Nursing,Gynaecology,Red Group Personnel Ltd,120223CH,672.98 ,B5 Agency Nursing,HA3 5AB
Medical Division,Integrated Medical Specialities,10/03/2023,B5 Agency Nursing,Ims Stroke / Rehabilitation,Red Group Personnel Ltd,120223CH,"6,010.47 ",B5 Agency Nursing,HA3 5AB
Families & Specialist Services,Childrens,10/03/2023,B5 Agency Nursing,Inpatients Paediatrics,Red Group Personnel Ltd,120223CH,"2,343.10 ",B5 Agency Nursing,HA3 5AB
Medical Division,Integrated Medical Specialities,10/03/2023,B5 Agency Nursing,Medical Oncology,Red Group Personnel Ltd,120223CH,574.44 ,B5 Agency Nursing,HA3 5AB
Surgery & Anaesthetics,Operating Services,10/03/2023,B5 Agency Nursing,Operating Services,Red Group Personnel Ltd,120223CH,"6,832.19 ",B5 Agency Nursing,HA3 5AB
Medical Division,Medical Specialities,10/03/2023,B5 Agency Nursing,Respiratory,Red Group Personnel Ltd,120223CH,"4,946.81 ",B5 Agency Nursing,HA3 5AB
Surgery & Anaesthetics,Orthopaedics,10/03/2023,B5 Agency Nursing,Trauma & Orthopaedics,Red Group Personnel Ltd,120223CH,474.15 ,B5 Agency Nursing,HA3 5AB
Medical Division,Emergency Medicine,17/03/2023,B5 Agency Nursing,A&E Nursing,Red Group Personnel Ltd,190223CH,"3,660.71 ",B5 Agency Nursing,HA3 5AB
Corporate Services,RAFT,17/03/2023,B5 Agency Nursing,Central Operations Team CORP,Red Group Personnel Ltd,190223CH,669.72 ,B5 Agency Nursing,HA3 5AB
Surgery & Anaesthetics,General Surgery,17/03/2023,B5 Agency Nursing,Endoscopy,Red Group Personnel Ltd,190223CH,530.20 ,B5 Agency Nursing,HA3 5AB
Medical Division,Medical Specialities,17/03/2023,B5 Agency Nursing,Gastroenterology,Red Group Personnel Ltd,190223CH,"1,233.38 ",B5 Agency Nursing,HA3 5AB
Medical Division,Acute Medical,17/03/2023,B5 Agency Nursing,General Medicine,Red Group Personnel Ltd,190223CH,"8,082.62 ",B5 Agency Nursing,HA3 5AB
Surgery & Anaesthetics,General Surgery,17/03/2023,B5 Agency Nursing,General Surgery,Red Group Personnel Ltd,190223CH,689.97 ,B5 Agency Nursing,HA3 5AB
Medical Division,Acute Medical,17/03/2023,B5 Agency Nursing,Geriatric Medicine,Red Group Personnel Ltd,190223CH,"3,313.91 ",B5 Agency Nursing,HA3 5AB
Medical Division,Integrated Medical Specialities,17/03/2023,B5 Agency Nursing,Ims Stroke / Rehabilitation,Red Group Personnel Ltd,190223CH,"3,928.81 ",B5 Agency Nursing,HA3 5AB
Families & Specialist Services,Childrens,17/03/2023,B5 Agency Nursing,Inpatients Paediatrics,Red Group Personnel Ltd,190223CH,787.62 ,B5 Agency Nursing,HA3 5AB
Medical Division,Integrated Medical Specialities,17/03/2023,B5 Agency Nursing,Medical Oncology,Red Group Personnel Ltd,190223CH,609.94 ,B5 Agency Nursing,HA3 5AB
Surgery & Anaesthetics,Operating Services,17/03/2023,B5 Agency Nursing,Operating Services,Red Group Personnel Ltd,190223CH,"5,061.98 ",B5 Agency Nursing,HA3 5AB
Corporate Services,Quality,17/03/2023,B5 Agency Nursing,Quality,Red Group Personnel Ltd,190223CH,598.03 ,B5 Agency Nursing,HA3 5AB
Medical Division,Medical Specialities,17/03/2023,B5 Agency Nursing,Respiratory,Red Group Personnel Ltd,190223CH,"6,948.29 ",B5 Agency Nursing,HA3 5AB
Medical Division,Emergency Medicine,01/03/2023,B5 Agency Nursing,A&E Nursing,Red Group Personnel Ltd,220123CH,"2,007.14 ",B5 Agency Nursing,HA3 5AB
Corporate Services,RAFT,01/03/2023,B5 Agency Nursing,Central Operations Team CORP,Red Group Personnel Ltd,220123CH,621.97 ,B5 Agency Nursing,HA3 5AB
Surgery & Anaesthetics,Head & Neck,01/03/2023,B5 Agency Nursing,Ent,Red Group Personnel Ltd,220123CH,689.97 ,B5 Agency Nursing,HA3 5AB
Medical Division,Medical Specialities,01/03/2023,B5 Agency Nursing,Gastroenterology,Red Group Personnel Ltd,220123CH,598.03 ,B5 Agency Nursing,HA3 5AB
Medical Division,Acute Medical,01/03/2023,B5 Agency Nursing,General Medicine,Red Group Personnel Ltd,220123CH,"11,077.33 ",B5 Agency Nursing,HA3 5AB
Surgery & Anaesthetics,General Surgery,01/03/2023,B5 Agency Nursing,General Surgery,Red Group Personnel Ltd,220123CH,"1,118.26 ",B5 Agency Nursing,HA3 5AB
Medical Division,Acute Medical,01/03/2023,B5 Agency Nursing,Geriatric Medicine,Red Group Personnel Ltd,220123CH,"4,989.17 ",B5 Agency Nursing,HA3 5AB
Medical Division,Integrated Medical Specialities,01/03/2023,B5 Agency Nursing,Ims Stroke / Rehabilitation,Red Group Personnel Ltd,220123CH,"6,239.16 ",B5 Agency Nursing,HA3 5AB
Families & Specialist Services,Childrens,01/03/2023,B5 Agency Nursing,Inpatients Paediatrics,Red Group Personnel Ltd,220123CH,787.62 ,B5 Agency Nursing,HA3 5AB
Surgery & Anaesthetics,Operating Services,01/03/2023,B5 Agency Nursing,Operating Services,Red Group Personnel Ltd,220123CH,"1,697.08 ",B5 Agency Nursing,HA3 5AB
Medical Division,Medical Specialities,01/03/2023,B5 Agency Nursing,Respiratory,Red Group Personnel Ltd,220123CH,"2,517.36 ",B5 Agency Nursing,HA3 5AB
Medical Division,Emergency Medicine,24/03/2023,B5 Agency Nursing,A&E Nursing,Red Group Personnel Ltd,260223CH,"3,098.40 ",B5 Agency Nursing,HA3 5AB
Medical Division,Acute Medical,24/03/2023,B5 Agency Nursing,General Medicine,Red Group Personnel Ltd,260223CH,"13,058.49 ",B5 Agency Nursing,HA3 5AB
Medical Division,Acute Medical,24/03/2023,B5 Agency Nursing,Geriatric Medicine,Red Group Personnel Ltd,260223CH,"4,689.27 ",B5 Agency Nursing,HA3 5AB
Medical Division,Integrated Medical Specialities,24/03/2023,B5 Agency Nursing,Ims Stroke / Rehabilitation,Red Group Personnel Ltd,260223CH,"8,114.04 ",B5 Agency Nursing,HA3 5AB
Families & Specialist Services,Childrens,24/03/2023,B5 Agency Nursing,Inpatients Paediatrics,Red Group Personnel Ltd,260223CH,"3,600.70 ",B5 Agency Nursing,HA3 5AB
Medical Division,Integrated Medical Specialities,24/03/2023,B5 Agency Nursing,Medical Oncology,Red Group Personnel Ltd,260223CH,574.44 ,B5 Agency Nursing,HA3 5AB
Surgery & Anaesthetics,Operating Services,24/03/2023,B5 Agency Nursing,Operating Services,Red Group Personnel Ltd,260223CH,"6,115.34 ",B5 Agency Nursing,HA3 5AB
Medical Division,Medical Specialities,24/03/2023,B5 Agency Nursing,Respiratory,Red Group Personnel Ltd,260223CH,"2,110.88 ",B5 Agency Nursing,HA3 5AB
Balance Sheet,L2 Current Assets,29/03/2023,Finished Processed Goods,Stock & Work In Progress,Roche Products Ltd,1322272849,"29,124.00 ",Pharmaceutical purchase,AL7 1TW
CHS Estates,L2 Estates,15/03/2023,Gas,Estates Operations,SEFE Energy Limited,INV02778292,"203,281.49 ",Mains gas HRI,M15 4RP
CHS Estates,L2 Estates,12/04/2023,Gas,Estates Operations,SEFE Energy Limited,INV02820819,"185,161.17 ",Mains gas HRI,M15 4RP
Families & Specialist Services,Pathology,10/03/2023,Laboratory Chemicals,Path Chemical Pathology,Siemens Healthcare Diagnostics Ltd,114990906,"169,645.04 ",BiochemistryManaged Service Contract,GU16 8QD
Balance Sheet,Fixed Assets,08/03/2023,Additions - Assets Under Construction,Capital (Surgical),Sigmacon (U K) Ltd,0000107794,"46,200.00 ",Lumenis Smart Selecta Duet YAG/SLTGAS900000LED,HA7 3HT
Corporate Services,Service Performance,31/03/2023,Other General Supplies and Services,Service Performance,Sir Jacob Behrens & Sons Ltd,IN0449781,"28,995.46 ",Curtains as per attached schedules,M17 1PP
Balance Sheet,Fixed Assets,10/03/2023,Additions - Assets Under Construction,Capital (Medicine & Elderly),Spacelabs Healthcare Ltd,IN315663,"25,320.78 ",Eclipse Pro monitors with short cables,SG13 7DT
Surgery & Anaesthetics,Surgical Divisional Support,22/03/2023,Contractual Clinical Services,Independent Sector,Spire Healthcare Ltd,RWYELDICF2223M09,"40,576.96 ",Provision of Elective Activity,RG1 9PL
Balance Sheet,Fixed Assets,10/03/2023,Additions - Assets Under Construction,Capital (Surgical),Stryker Uk Ltd,29601667,"99,077.40 ",D850 OPERATING TABLE - OPE10000 PERINEAL FILLER PLATE - OZ 7519975,RG14 5AW
CHS Facilities,L2 Facilities,01/03/2023,External Contracts : Laundry,Laundry,Synergy Health Managed Services Ltd,50001152,"118,980.12 ",LAUNDRY SERVICE CONTRACT,WA9 5XH
CHS Facilities,L2 Facilities,31/03/2023,External Contracts : Laundry,Laundry,Synergy Health Managed Services Ltd,50001190,"104,241.86 ",LAUNDRY SERVICE CONTRACT,WA9 5XH
Community Division,Community Therapies,01/03/2023,Patients Appliances : Purchase,Patient Appliances,Taycare Medical Ltd,21810,"46,472.31 ",supply of specialist orthotic products,LS12 6LL
Community Division,Community Therapies,01/03/2023,Patients Appliances : Purchase,Patient Appliances,Taycare Medical Ltd,21811,"44,774.89 ",supply of specialist orthotic products,LS12 6LL
Community Division,Community Therapies,29/03/2023,Patients Appliances : Purchase,Patient Appliances,Taycare Medical Ltd,21867,"30,463.99 ",supply of specialist orthotic products,LS12 6LL
Community Division,Community Therapies,29/03/2023,Patients Appliances : Purchase,Patient Appliances,Taycare Medical Ltd,21868,"42,981.37 ",supply of specialist orthotic products,LS12 6LL
Families & Specialist Services,Radiology,10/03/2023,Contractual Clinical Services,Rad General,Telemedicine Clinic Ltd,20220604,"123,024.05 ",Outsourced Radiology Services,B3 2RT
Families & Specialist Services,Radiology,22/03/2023,Contractual Clinical Services,Rad General,Telemedicine Clinic Ltd,20230012,"138,070.34 ",Outsourced Radiology Services,B3 2RT
Balance Sheet,Fixed Assets,15/03/2023,Additions - Assets Under Construction,Capital (His),Teqex Ltd,INV-29949,"39,720.56 ","Lenovo ThinkCentre M70q Gen 3. Lenovo ThinkCentre Tiny-In-One. Display diagonal: 60.5 cm (23.8"")  Lenovo ThinkCentre M70q Gen 3.",OL10 2QE
Recharges,Recharges,03/03/2023,Healthcare From NHS Trusts,Recharges,The Leeds Teaching Hospitals NHS Trust,1410203137,"254,091.91 ",Various services provided by agreement as per West Yorkshire Association of Acute Trusts agreed methodology,LS9 7TF
Recharges,Recharges,05/04/2023,Healthcare From NHS Trusts,Recharges,The Leeds Teaching Hospitals NHS Trust,1410204541,"252,771.83 ",Various services provided by agreement as per West Yorkshire Association of Acute Trusts agreed methodology,LS9 7TF
CHS Estates,L2 Estates,06/04/2023,Gas,Estates Operations,TotalEnergies Gas & Power Ltd,294451020/23,"669,462.07 ",Mains Gas CRH,RH1 1RX
Balance Sheet,L2 Current Assets,03/03/2023,Other Debtors < One Year,Other Debtors,Tuskerdirect Ltd,71426,"136,456.70 ",Salary Sacrifice cars,WD18 8YF
Balance Sheet,L2 Current Assets,31/03/2023,Other Debtors < One Year,Other Debtors,Tuskerdirect Ltd,72816,"133,763.09 ",Salary Sacrifice cars,WD18 8YF
Balance Sheet,Fixed Assets,06/04/2023,Additions - Assets Under Construction,Capital (Medicine & Elderly),Vyaire UK 236 Ltd,31350562RI,"89,540.38 ",PTT Machines Cardiology,RG24 8NA
Medical Division,Emergency Medicine,03/03/2023,B5 Agency Nursing,A&E Nursing,Your Nurse Ltd,EHCX39,"5,855.50 ",B5 Agency Nursing,EC3V 0EH
Medical Division,Medical Specialities,03/03/2023,B5 Agency Nursing,Cardiology,Your Nurse Ltd,EHCX39,"2,447.50 ",B5 Agency Nursing,EC3V 0EH
Corporate Services,RAFT,03/03/2023,B5 Agency Nursing,Central Operations Team CORP,Your Nurse Ltd,EHCX39,"1,341.00 ",B5 Agency Nursing,EC3V 0EH
Surgery & Anaesthetics,Critical Care,03/03/2023,B5 Agency Nursing,Critical Care,Your Nurse Ltd,EHCX39,721.00 ,B5 Agency Nursing,EC3V 0EH
Medical Division,Medical Specialities,03/03/2023,B5 Agency Nursing,Gastroenterology,Your Nurse Ltd,EHCX39,"4,245.00 ",B5 Agency Nursing,EC3V 0EH
Medical Division,Acute Medical,03/03/2023,B5 Agency Nursing,General Medicine,Your Nurse Ltd,EHCX39,"3,595.00 ",B5 Agency Nursing,EC3V 0EH
Surgery & Anaesthetics,General Surgery,03/03/2023,B5 Agency Nursing,General Surgery,Your Nurse Ltd,EHCX39,"2,530.00 ",B5 Agency Nursing,EC3V 0EH
Medical Division,Acute Medical,03/03/2023,B5 Agency Nursing,Geriatric Medicine,Your Nurse Ltd,EHCX39,"6,650.83 ",B5 Agency Nursing,EC3V 0EH
Families & Specialist Services,Womens,03/03/2023,B5 Agency Nursing,Gynaecology,Your Nurse Ltd,EHCX39,667.00 ,B5 Agency Nursing,EC3V 0EH
Medical Division,Integrated Medical Specialities,03/03/2023,B5 Agency Nursing,Ims Stroke / Rehabilitation,Your Nurse Ltd,EHCX39,595.00 ,B5 Agency Nursing,EC3V 0EH
Surgery & Anaesthetics,Orthopaedics,03/03/2023,B5 Agency Nursing,Trauma & Orthopaedics,Your Nurse Ltd,EHCX39,"1,240.00 ",B5 Agency Nursing,EC3V 0EH
Medical Division,Emergency Medicine,03/03/2023,B5 Agency Nursing,A&E Nursing,Your Nurse Ltd,EHCX40,"1,896.37 ",B5 Agency Nursing,EC3V 0EH
Medical Division,Medical Specialities,03/03/2023,B5 Agency Nursing,Cardiology,Your Nurse Ltd,EHCX40,"1,834.99 ",B5 Agency Nursing,EC3V 0EH
Corporate Services,RAFT,03/03/2023,B5 Agency Nursing,Central Operations Team CORP,Your Nurse Ltd,EHCX40,"2,412.48 ",B5 Agency Nursing,EC3V 0EH
Surgery & Anaesthetics,Critical Care,03/03/2023,B5 Agency Nursing,Critical Care,Your Nurse Ltd,EHCX40,"1,442.00 ",B5 Agency Nursing,EC3V 0EH
Medical Division,Medical Specialities,03/03/2023,B5 Agency Nursing,Gastroenterology,Your Nurse Ltd,EHCX40,"3,769.98 ",B5 Agency Nursing,EC3V 0EH
Medical Division,Acute Medical,03/03/2023,B5 Agency Nursing,General Medicine,Your Nurse Ltd,EHCX40,"2,414.97 ",B5 Agency Nursing,EC3V 0EH
Surgery & Anaesthetics,General Surgery,03/03/2023,B5 Agency Nursing,General Surgery,Your Nurse Ltd,EHCX40,620.00 ,B5 Agency Nursing,EC3V 0EH
Medical Division,Acute Medical,03/03/2023,B5 Agency Nursing,Geriatric Medicine,Your Nurse Ltd,EHCX40,"8,937.40 ",B5 Agency Nursing,EC3V 0EH
Families & Specialist Services,Womens,03/03/2023,B5 Agency Nursing,Gynaecology,Your Nurse Ltd,EHCX40,736.00 ,B5 Agency Nursing,EC3V 0EH
Medical Division,Integrated Medical Specialities,03/03/2023,B5 Agency Nursing,Ims Stroke / Rehabilitation,Your Nurse Ltd,EHCX40,"1,784.97 ",B5 Agency Nursing,EC3V 0EH
Medical Division,Medical Specialities,03/03/2023,B5 Agency Nursing,Respiratory,Your Nurse Ltd,EHCX40,602.50 ,B5 Agency Nursing,EC3V 0EH
Surgery & Anaesthetics,Orthopaedics,03/03/2023,B5 Agency Nursing,Trauma & Orthopaedics,Your Nurse Ltd,EHCX40,"3,167.50 ",B5 Agency Nursing,EC3V 0EH
Medical Division,Emergency Medicine,10/03/2023,B5 Agency Nursing,A&E Nursing,Your Nurse Ltd,EHCX41,"4,172.13 ",B5 Agency Nursing,EC3V 0EH
Medical Division,Medical Specialities,10/03/2023,B5 Agency Nursing,Cardiology,Your Nurse Ltd,EHCX41,"1,785.03 ",B5 Agency Nursing,EC3V 0EH
Corporate Services,RAFT,10/03/2023,B5 Agency Nursing,Central Operations Team CORP,Your Nurse Ltd,EHCX41,"3,197.50 ",B5 Agency Nursing,EC3V 0EH
Medical Division,Medical Specialities,10/03/2023,B5 Agency Nursing,Gastroenterology,Your Nurse Ltd,EHCX41,"6,807.56 ",B5 Agency Nursing,EC3V 0EH
Medical Division,Acute Medical,10/03/2023,B5 Agency Nursing,General Medicine,Your Nurse Ltd,EHCX41,"2,980.05 ",B5 Agency Nursing,EC3V 0EH
Surgery & Anaesthetics,General Surgery,10/03/2023,B5 Agency Nursing,General Surgery,Your Nurse Ltd,EHCX41,632.50 ,B5 Agency Nursing,EC3V 0EH
Medical Division,Acute Medical,10/03/2023,B5 Agency Nursing,Geriatric Medicine,Your Nurse Ltd,EHCX41,"10,742.56 ",B5 Agency Nursing,EC3V 0EH
Families & Specialist Services,Womens,10/03/2023,B5 Agency Nursing,Gynaecology,Your Nurse Ltd,EHCX41,667.00 ,B5 Agency Nursing,EC3V 0EH
Medical Division,Integrated Medical Specialities,10/03/2023,B5 Agency Nursing,Ims Stroke / Rehabilitation,Your Nurse Ltd,EHCX41,595.01 ,B5 Agency Nursing,EC3V 0EH
Medical Division,Integrated Medical Specialities,10/03/2023,B5 Agency Nursing,Medical Oncology,Your Nurse Ltd,EHCX41,620.00 ,B5 Agency Nursing,EC3V 0EH
Surgery & Anaesthetics,Orthopaedics,10/03/2023,B5 Agency Nursing,Trauma & Orthopaedics,Your Nurse Ltd,EHCX41,"1,252.50 ",B5 Agency Nursing,EC3V 0EH
Medical Division,Emergency Medicine,17/03/2023,B5 Agency Nursing,A&E Nursing,Your Nurse Ltd,EHCX42,"4,048.50 ",B5 Agency Nursing,EC3V 0EH
Medical Division,Medical Specialities,17/03/2023,B5 Agency Nursing,Cardiology,Your Nurse Ltd,EHCX42,"2,982.50 ",B5 Agency Nursing,EC3V 0EH
Corporate Services,RAFT,17/03/2023,B5 Agency Nursing,Central Operations Team CORP,Your Nurse Ltd,EHCX42,"4,872.50 ",B5 Agency Nursing,EC3V 0EH
Medical Division,Medical Specialities,17/03/2023,B5 Agency Nursing,Gastroenterology,Your Nurse Ltd,EHCX42,"1,940.00 ",B5 Agency Nursing,EC3V 0EH
Medical Division,Acute Medical,17/03/2023,B5 Agency Nursing,General Medicine,Your Nurse Ltd,EHCX42,"3,417.50 ",B5 Agency Nursing,EC3V 0EH
Surgery & Anaesthetics,General Surgery,17/03/2023,B5 Agency Nursing,General Surgery,Your Nurse Ltd,EHCX42,"2,940.17 ",B5 Agency Nursing,EC3V 0EH
Medical Division,Acute Medical,17/03/2023,B5 Agency Nursing,Geriatric Medicine,Your Nurse Ltd,EHCX42,"8,178.33 ",B5 Agency Nursing,EC3V 0EH
Families & Specialist Services,Womens,17/03/2023,B5 Agency Nursing,Gynaecology,Your Nurse Ltd,EHCX42,667.00 ,B5 Agency Nursing,EC3V 0EH
Medical Division,Integrated Medical Specialities,17/03/2023,B5 Agency Nursing,Ims Stroke / Rehabilitation,Your Nurse Ltd,EHCX42,595.00 ,B5 Agency Nursing,EC3V 0EH
Medical Division,Medical Specialities,17/03/2023,B5 Agency Nursing,Respiratory,Your Nurse Ltd,EHCX42,"1,262.50 ",B5 Agency Nursing,EC3V 0EH
Surgery & Anaesthetics,Orthopaedics,17/03/2023,B5 Agency Nursing,Trauma & Orthopaedics,Your Nurse Ltd,EHCX42,"3,075.00 ",B5 Agency Nursing,EC3V 0EH
Medical Division,Emergency Medicine,24/03/2023,B5 Agency Nursing,A&E Nursing,Your Nurse Ltd,EHCX43,"4,318.50 ",B5 Agency Nursing,EC3V 0EH
Medical Division,Medical Specialities,24/03/2023,B5 Agency Nursing,Cardiology,Your Nurse Ltd,EHCX43,602.50 ,B5 Agency Nursing,EC3V 0EH
Corporate Services,RAFT,24/03/2023,B5 Agency Nursing,Central Operations Team CORP,Your Nurse Ltd,EHCX43,"4,362.50 ",B5 Agency Nursing,EC3V 0EH
Medical Division,Medical Specialities,24/03/2023,B5 Agency Nursing,Gastroenterology,Your Nurse Ltd,EHCX43,"5,225.00 ",B5 Agency Nursing,EC3V 0EH
Medical Division,Acute Medical,24/03/2023,B5 Agency Nursing,General Medicine,Your Nurse Ltd,EHCX43,"4,057.50 ",B5 Agency Nursing,EC3V 0EH
Surgery & Anaesthetics,General Surgery,24/03/2023,B5 Agency Nursing,General Surgery,Your Nurse Ltd,EHCX43,"2,138.00 ",B5 Agency Nursing,EC3V 0EH
Medical Division,Acute Medical,24/03/2023,B5 Agency Nursing,Geriatric Medicine,Your Nurse Ltd,EHCX43,"10,310.00 ",B5 Agency Nursing,EC3V 0EH
Medical Division,Integrated Medical Specialities,24/03/2023,B5 Agency Nursing,Ims Stroke / Rehabilitation,Your Nurse Ltd,EHCX43,"1,952.50 ",B5 Agency Nursing,EC3V 0EH
Medical Division,Medical Specialities,24/03/2023,B5 Agency Nursing,Respiratory,Your Nurse Ltd,EHCX43,620.00 ,B5 Agency Nursing,EC3V 0EH
Surgery & Anaesthetics,Orthopaedics,24/03/2023,B5 Agency Nursing,Trauma & Orthopaedics,Your Nurse Ltd,EHCX43,"1,247.50 ",B5 Agency Nursing,EC3V 0EH
Medical Division,Emergency Medicine,31/03/2023,B5 Agency Nursing,A&E Nursing,Your Nurse Ltd,EHCX44,"3,552.50 ",B5 Agency Nursing,EC3V 0EH
Medical Division,Medical Specialities,31/03/2023,B5 Agency Nursing,Cardiology,Your Nurse Ltd,EHCX44,595.00 ,B5 Agency Nursing,EC3V 0EH
Corporate Services,RAFT,31/03/2023,B5 Agency Nursing,Central Operations Team CORP,Your Nurse Ltd,EHCX44,"1,240.00 ",B5 Agency Nursing,EC3V 0EH
Surgery & Anaesthetics,General Surgery,31/03/2023,B5 Agency Nursing,Endoscopy,Your Nurse Ltd,EHCX44,475.00 ,B5 Agency Nursing,EC3V 0EH
Medical Division,Medical Specialities,31/03/2023,B5 Agency Nursing,Gastroenterology,Your Nurse Ltd,EHCX44,660.00 ,B5 Agency Nursing,EC3V 0EH
Medical Division,Acute Medical,31/03/2023,B5 Agency Nursing,General Medicine,Your Nurse Ltd,EHCX44,"4,997.50 ",B5 Agency Nursing,EC3V 0EH
Surgery & Anaesthetics,General Surgery,31/03/2023,B5 Agency Nursing,General Surgery,Your Nurse Ltd,EHCX44,"4,589.50 ",B5 Agency Nursing,EC3V 0EH
Medical Division,Acute Medical,31/03/2023,B5 Agency Nursing,Geriatric Medicine,Your Nurse Ltd,EHCX44,"11,003.33 ",B5 Agency Nursing,EC3V 0EH
Medical Division,Integrated Medical Specialities,31/03/2023,B5 Agency Nursing,Ims Stroke / Rehabilitation,Your Nurse Ltd,EHCX44,"1,190.00 ",B5 Agency Nursing,EC3V 0EH
Medical Division,Integrated Medical Specialities,31/03/2023,B5 Agency Nursing,Medical Oncology,Your Nurse Ltd,EHCX44,620.00 ,B5 Agency Nursing,EC3V 0EH
Medical Division,Medical Specialities,31/03/2023,B5 Agency Nursing,Respiratory,Your Nurse Ltd,EHCX44,620.00 ,B5 Agency Nursing,EC3V 0EH
Surgery & Anaesthetics,Orthopaedics,31/03/2023,B5 Agency Nursing,Trauma & Orthopaedics,Your Nurse Ltd,EHCX44,627.50 ,B5 Agency Nursing,EC3V 0EH
Central & Technical,Tech Accounting,12/04/2023,B5 Agency Nursing,Tech Accounting,Your Nurse Ltd,EHCX45,"54,802.40 ",B5 Agency Nursing,EC3V 0EH
Medical Division,Emergency Medicine,03/03/2023,B5 Agency Nursing,A&E Nursing,Your Nurse Ltd,YNLX63,15141.85,B5 Agency Nursing,EC3V 0EH
Medical Division,Medical Specialities,03/03/2023,B5 Agency Nursing,Cardiology,Your Nurse Ltd,YNLX63,796.78,B5 Agency Nursing,EC3V 0EH
Corporate Services,RAFT,03/03/2023,B5 Agency Nursing,Central Operations Team CORP,Your Nurse Ltd,YNLX63,5567.33,B5 Agency Nursing,EC3V 0EH
Surgery & Anaesthetics,Critical Care,03/03/2023,B5 Agency Nursing,Critical Care,Your Nurse Ltd,YNLX63,2173.19,B5 Agency Nursing,EC3V 0EH
Surgery & Anaesthetics,Head & Neck,03/03/2023,B5 Agency Nursing,Ent,Your Nurse Ltd,YNLX63,601.27,B5 Agency Nursing,EC3V 0EH
Medical Division,Medical Specialities,03/03/2023,B5 Agency Nursing,Gastroenterology,Your Nurse Ltd,YNLX63,4352.67,B5 Agency Nursing,EC3V 0EH
Medical Division,Acute Medical,03/03/2023,B5 Agency Nursing,General Medicine,Your Nurse Ltd,YNLX63,10997.97,B5 Agency Nursing,EC3V 0EH
Surgery & Anaesthetics,General Surgery,03/03/2023,B5 Agency Nursing,General Surgery,Your Nurse Ltd,YNLX63,5511.69,B5 Agency Nursing,EC3V 0EH
Medical Division,Acute Medical,03/03/2023,B5 Agency Nursing,Geriatric Medicine,Your Nurse Ltd,YNLX63,19422.74,B5 Agency Nursing,EC3V 0EH
Medical Division,Integrated Medical Specialities,03/03/2023,B5 Agency Nursing,Ims Stroke / Rehabilitation,Your Nurse Ltd,YNLX63,11222.39,B5 Agency Nursing,EC3V 0EH
Families & Specialist Services,Childrens,03/03/2023,B5 Agency Nursing,Inpatients Paediatrics,Your Nurse Ltd,YNLX63,5729.5,B5 Agency Nursing,EC3V 0EH
Medical Division,Integrated Medical Specialities,03/03/2023,B5 Agency Nursing,Medical Oncology,Your Nurse Ltd,YNLX63,1155.91,B5 Agency Nursing,EC3V 0EH
Surgery & Anaesthetics,Operating Services,03/03/2023,B5 Agency Nursing,Operating Services,Your Nurse Ltd,YNLX63,16165.03,B5 Agency Nursing,EC3V 0EH
Medical Division,Medical Specialities,03/03/2023,B5 Agency Nursing,Respiratory,Your Nurse Ltd,YNLX63,6576.59,B5 Agency Nursing,EC3V 0EH
Surgery & Anaesthetics,Orthopaedics,03/03/2023,B5 Agency Nursing,Trauma & Orthopaedics,Your Nurse Ltd,YNLX63,5808.29,B5 Agency Nursing,EC3V 0EH
Medical Division,Emergency Medicine,17/03/2023,B5 Agency Nursing,A&E Nursing,Your Nurse Ltd,YNLX64,27088.72,B5 Agency Nursing,EC3V 0EH
Medical Division,Medical Specialities,17/03/2023,B5 Agency Nursing,Cardiology,Your Nurse Ltd,YNLX64,4167.07,B5 Agency Nursing,EC3V 0EH
Corporate Services,RAFT,17/03/2023,B5 Agency Nursing,Central Operations Team CORP,Your Nurse Ltd,YNLX64,11827.98,B5 Agency Nursing,EC3V 0EH
Surgery & Anaesthetics,Critical Care,17/03/2023,B5 Agency Nursing,Critical Care,Your Nurse Ltd,YNLX64,715.73,B5 Agency Nursing,EC3V 0EH
Medical Division,Medical Specialities,17/03/2023,B5 Agency Nursing,Gastroenterology,Your Nurse Ltd,YNLX64,6728.28,B5 Agency Nursing,EC3V 0EH
Medical Division,Acute Medical,17/03/2023,B5 Agency Nursing,General Medicine,Your Nurse Ltd,YNLX64,15762.32,B5 Agency Nursing,EC3V 0EH
Surgery & Anaesthetics,General Surgery,17/03/2023,B5 Agency Nursing,General Surgery,Your Nurse Ltd,YNLX64,8328.13,B5 Agency Nursing,EC3V 0EH
Medical Division,Acute Medical,17/03/2023,B5 Agency Nursing,Geriatric Medicine,Your Nurse Ltd,YNLX64,23792.78,B5 Agency Nursing,EC3V 0EH
Families & Specialist Services,Womens,17/03/2023,B5 Agency Nursing,Gynaecology,Your Nurse Ltd,YNLX64,706.19,B5 Agency Nursing,EC3V 0EH
Medical Division,Integrated Medical Specialities,17/03/2023,B5 Agency Nursing,Ims Stroke / Rehabilitation,Your Nurse Ltd,YNLX64,12583.32,B5 Agency Nursing,EC3V 0EH
Families & Specialist Services,Childrens,17/03/2023,B5 Agency Nursing,Inpatients Paediatrics,Your Nurse Ltd,YNLX64,8646.64,B5 Agency Nursing,EC3V 0EH
Medical Division,Integrated Medical Specialities,17/03/2023,B5 Agency Nursing,Medical Oncology,Your Nurse Ltd,YNLX64,578.76,B5 Agency Nursing,EC3V 0EH
Surgery & Anaesthetics,Operating Services,17/03/2023,B5 Agency Nursing,Operating Services,Your Nurse Ltd,YNLX64,16341.97,B5 Agency Nursing,EC3V 0EH
Medical Division,Medical Specialities,17/03/2023,B5 Agency Nursing,Respiratory,Your Nurse Ltd,YNLX64,8280.52,B5 Agency Nursing,EC3V 0EH
Surgery & Anaesthetics,Orthopaedics,17/03/2023,B5 Agency Nursing,Trauma & Orthopaedics,Your Nurse Ltd,YNLX64,6303.22,B5 Agency Nursing,EC3V 0EH
Medical Division,Emergency Medicine,24/03/2023,B5 Agency Nursing,A&E Nursing,Your Nurse Ltd,YNLX65,"24,135.60 ",B5 Agency Nursing,EC3V 0EH
Medical Division,Medical Specialities,24/03/2023,B5 Agency Nursing,Cardiology,Your Nurse Ltd,YNLX65,"2,508.49 ",B5 Agency Nursing,EC3V 0EH
Corporate Services,RAFT,24/03/2023,B5 Agency Nursing,Central Operations Team CORP,Your Nurse Ltd,YNLX65,"8,462.23 ",B5 Agency Nursing,EC3V 0EH
Surgery & Anaesthetics,Head & Neck,24/03/2023,B5 Agency Nursing,Ent,Your Nurse Ltd,YNLX65,"1,239.17 ",B5 Agency Nursing,EC3V 0EH
Medical Division,Medical Specialities,24/03/2023,B5 Agency Nursing,Gastroenterology,Your Nurse Ltd,YNLX65,"8,447.72 ",B5 Agency Nursing,EC3V 0EH
Medical Division,Acute Medical,24/03/2023,B5 Agency Nursing,General Medicine,Your Nurse Ltd,YNLX65,"12,561.92 ",B5 Agency Nursing,EC3V 0EH
Surgery & Anaesthetics,General Surgery,24/03/2023,B5 Agency Nursing,General Surgery,Your Nurse Ltd,YNLX65,"11,501.20 ",B5 Agency Nursing,EC3V 0EH
Medical Division,Acute Medical,24/03/2023,B5 Agency Nursing,Geriatric Medicine,Your Nurse Ltd,YNLX65,"19,819.64 ",B5 Agency Nursing,EC3V 0EH
Medical Division,Integrated Medical Specialities,24/03/2023,B5 Agency Nursing,Ims Stroke / Rehabilitation,Your Nurse Ltd,YNLX65,"13,494.70 ",B5 Agency Nursing,EC3V 0EH
Families & Specialist Services,Childrens,24/03/2023,B5 Agency Nursing,Inpatients Paediatrics,Your Nurse Ltd,YNLX65,"8,554.26 ",B5 Agency Nursing,EC3V 0EH
Surgery & Anaesthetics,Operating Services,24/03/2023,B5 Agency Nursing,Operating Services,Your Nurse Ltd,YNLX65,"18,369.52 ",B5 Agency Nursing,EC3V 0EH
Corporate Services,Quality,24/03/2023,B5 Agency Nursing,Quality,Your Nurse Ltd,YNLX65,"1,186.20 ",B5 Agency Nursing,EC3V 0EH
Medical Division,Medical Specialities,24/03/2023,B5 Agency Nursing,Respiratory,Your Nurse Ltd,YNLX65,"14,083.08 ",B5 Agency Nursing,EC3V 0EH
Surgery & Anaesthetics,Orthopaedics,24/03/2023,B5 Agency Nursing,Trauma & Orthopaedics,Your Nurse Ltd,YNLX65,"6,699.23 ",B5 Agency Nursing,EC3V 0EH
Medical Division,Emergency Medicine,29/03/2023,B5 Agency Nursing,A&E Nursing,Your Nurse Ltd,YNLX66,"13,233.33 ",B5 Agency Nursing,EC3V 0EH
Medical Division,Medical Specialities,29/03/2023,B5 Agency Nursing,Cardiology,Your Nurse Ltd,YNLX66,"2,342.74 ",B5 Agency Nursing,EC3V 0EH
Corporate Services,RAFT,29/03/2023,B5 Agency Nursing,Central Operations Team CORP,Your Nurse Ltd,YNLX66,"6,527.45 ",B5 Agency Nursing,EC3V 0EH
Surgery & Anaesthetics,Critical Care,29/03/2023,B5 Agency Nursing,Critical Care,Your Nurse Ltd,YNLX66,733.50 ,B5 Agency Nursing,EC3V 0EH
Surgery & Anaesthetics,Head & Neck,29/03/2023,B5 Agency Nursing,Ent,Your Nurse Ltd,YNLX66,543.00 ,B5 Agency Nursing,EC3V 0EH
Medical Division,Medical Specialities,29/03/2023,B5 Agency Nursing,Gastroenterology,Your Nurse Ltd,YNLX66,"6,046.34 ",B5 Agency Nursing,EC3V 0EH
Medical Division,Acute Medical,29/03/2023,B5 Agency Nursing,General Medicine,Your Nurse Ltd,YNLX66,"9,790.92 ",B5 Agency Nursing,EC3V 0EH
Surgery & Anaesthetics,General Surgery,29/03/2023,B5 Agency Nursing,General Surgery,Your Nurse Ltd,YNLX66,"7,878.42 ",B5 Agency Nursing,EC3V 0EH
Medical Division,Acute Medical,29/03/2023,B5 Agency Nursing,Geriatric Medicine,Your Nurse Ltd,YNLX66,"16,478.21 ",B5 Agency Nursing,EC3V 0EH
Families & Specialist Services,Womens,29/03/2023,B5 Agency Nursing,Gynaecology,Your Nurse Ltd,YNLX66,"2,225.86 ",B5 Agency Nursing,EC3V 0EH
Medical Division,Integrated Medical Specialities,29/03/2023,B5 Agency Nursing,Ims Stroke / Rehabilitation,Your Nurse Ltd,YNLX66,"11,947.97 ",B5 Agency Nursing,EC3V 0EH
Families & Specialist Services,Childrens,29/03/2023,B5 Agency Nursing,Inpatients Paediatrics,Your Nurse Ltd,YNLX66,"2,861.61 ",B5 Agency Nursing,EC3V 0EH
Medical Division,Integrated Medical Specialities,29/03/2023,B5 Agency Nursing,Medical Oncology,Your Nurse Ltd,YNLX66,578.76 ,B5 Agency Nursing,EC3V 0EH
Surgery & Anaesthetics,Operating Services,29/03/2023,B5 Agency Nursing,Operating Services,Your Nurse Ltd,YNLX66,"25,038.82 ",B5 Agency Nursing,EC3V 0EH
Medical Division,Medical Specialities,29/03/2023,B5 Agency Nursing,Respiratory,Your Nurse Ltd,YNLX66,"9,423.88 ",B5 Agency Nursing,EC3V 0EH
Surgery & Anaesthetics,Orthopaedics,29/03/2023,B5 Agency Nursing,Trauma & Orthopaedics,Your Nurse Ltd,YNLX66,"7,689.62 ",B5 Agency Nursing,EC3V 0EH
Central & Technical,Tech Accounting,12/04/2023,B5 Agency Nursing,Tech Accounting,Your Nurse Ltd,YNLX67,"143,631.56 ",B5 Agency Nursing,EC3V 0EH
